Workbook

Sheet EventConfig
A1: ID | B1: EventLinksId | C1: EventTriggerType | D1: EventTag | E1: EventType | F1: Score | G1: EventQuality | I1: PrizeIDs | J1: PrizeNums | K1: RelatedEvents | L1: RefreshProbability | M1: RefreshCount | N1: placeID | O1: XiantuID | Q1: EventConditionId | R1: EventValue | S1: EventCount | T1: EventName | U1: Description
A2: int | B2: int[] | C2: int | D2: int | E2: int | F2: int | G2: int | I2: int[] | J2: int[] | K2: int[] | L2: int | M2: int | N2: int | O2: int | Q2: int | R2: int[] | S2: int | T2: int | U2: int
Y3: 1 | Z3: 2 | AA3: 3 | AB3: 4 | AC3: 5 | AD3: 6 | AE3: 7 | AF3: 8 | AG3: 9 | AH3: 10 | AI3: 11 | AJ3: 12 | AK3: 13 | AL3: 14 | AM3: 15 | AN3: 16
A4: ID | B4: 事件包含的ID | C4: 事件类型： 1.通用事件 2.挂机事件 4.主线任务 5.仙山探险 99.无标记 | D4: tag 1主线2支线 3通用 4地图通用 5道友 | E4: 1.正常触发 2.直接结算 | F4: 增加进度值 | G4: 事件品质 | I4: 事件结局奖励 | J4: 事件结局奖励数量 | K4: 关联的事件Id | L4: 刷新的概率 （100=100%） | M4: 最大刷新数量 | N4: 属于哪张地图 | O4: 仙途日志ID | P4: 触发条件 | Q4: 触发条件类型 只能配处于什么状态和数值，不能配变化的数值 | R4: 触发效果值 | S4: 触发判定数量or次数 | T4: 任务标题 | U4: 任务详情界面的总描述 | V4: 标题 | W4: 整体描述 | X4: 总步数 | Y4: 步骤1 | Z4: 步骤2 | AA4: 步骤3 | AB4: 步骤4 | AC4: 步骤5 | AD4: 步骤6 | AE4: 步骤7 | AF4: 步骤8 | AG4: 步骤9 | AH4: 步骤10 | AI4: 步骤11 | AJ4: 步骤12 | AK4: 步骤13 | AL4: 步骤14 | AM4: 步骤15 | AN4: 步骤16
A5: 1 | B5: =_xlfn.TEXTJOIN(";",1,Y5:AN5) -> 1001;1002;1003;1004;1005 | C5: 1 | D5: 3 | E5: 1 | F5: 0 | G5: 1 | I5: 1001 | J5: 10 | N5: 8 | O5: 4 | P5: =IF(Q5="","",VLOOKUP(Q5,条件类型查询!A:B,2,FALSE)) -> 境界判断 | Q5: 3 | R5: 5 | T5: 174 | U5: 1936 | V5: 受伤的狼 | W5: 你发现一只奄奄一息的狼，决定上前一探究竟。 | Y5: 1001 | Z5: 1002 | AA5: 1003 | AB5: 1004 | AC5: 1005
A6: 2 | B6: =_xlfn.TEXTJOIN(";",1,Y6:AN6) -> 1010;1011;1012;1013;1014;1015;1016 | C6: 1 | D6: 3 | E6: 1 | F6: 0 | G6: 1 | I6: 1001 | J6: 10 | N6: 9 | O6: 4 | P6: =IF(Q6="","",VLOOKUP(Q6,条件类型查询!A:B,2,FALSE)) ->  | T6: 175 | U6: 1937 | V6: 鹬蚌相争 | W6: 附近的小树林闹的不可开交，你决定去看看怎么回事。 | Y6: 1010 | Z6: 1011 | AA6: 1012 | AB6: 1013 | AC6: 1014 | AD6: 1015 | AE6: 1016
A7: 3 | B7: 1020;1021;1022;1023;1024;1025;1026 | C7: 99 | D7: 2 | E7: 1 | F7: 10 | G7: 1 | I7: 1001 | J7: 10 | N7: 10 | O7: 4 | P7: =IF(Q7="","",VLOOKUP(Q7,条件类型查询!A:B,2,FALSE)) -> 拥有特定道具 | Q7: 1 | R7: 1004 | S7: 1 | T7: 176 | U7: 1938 | V7: 鹬蚌相争2 | W7: 附近的小树林闹的不可开交，你决定去看看怎么回事。 | Y7: 1020 | Z7: 1021 | AA7: 1022 | AB7: 1023 | AC7: 1024 | AD7: 1025 | AE7: 1026
P8: =IF(Q8="","",VLOOKUP(Q8,条件类型查询!A:B,2,FALSE)) -> 
A9: 4 | B9: 1030 | C9: 1 | D9: 1 | E9: 2 | F9: 0 | G9: 1 | I9: 1001 | J9: 10 | N9: 5 | O9: 3 | P9: =IF(Q9="","",VLOOKUP(Q9,条件类型查询!A:B,2,FALSE)) -> 触发概率 | Q9: 7 | R9: 500 | T9: 217 | U9: 1939 | V9: 溅血背包 | W9: 不远处有一个小红点，走近一看你发现是一个带血的背包。 | Y9: 1030
A10: 5 | B10: 1040 | C10: 1 | D10: 1 | E10: 2 | F10: 0 | G10: 1 | I10: 1001 | J10: 10 | N10: 5 | O10: 3 | P10: =IF(Q10="","",VLOOKUP(Q10,条件类型查询!A:B,2,FALSE)) ->  | T10: 218 | U10: 1940 | V10: 废弃矿山 | W10: 底下一座矿山甚是磅礴雄伟，走，去看一看。 | Y10: 1040
A11: 6 | B11: 1050 | C11: 1 | D11: 1 | E11: 2 | F11: 0 | G11: 1 | I11: 1001 | J11: 10 | N11: 6 | O11: 3 | P11: =IF(Q11="","",VLOOKUP(Q11,条件类型查询!A:B,2,FALSE)) ->  | T11: 219 | U11: 1941 | V11: 吵架声 | W11: 你被一男一女的吵架声吸引。 | Y11: 1050
A12: 7 | B12: 1060 | C12: 1 | D12: 1 | E12: 2 | F12: 0 | G12: 1 | I12: 1001 | J12: 10 | N12: 7 | O12: 3 | P12: =IF(Q12="","",VLOOKUP(Q12,条件类型查询!A:B,2,FALSE)) ->  | T12: 220 | U12: 1942 | V12: 一座道观 | W12: 远处一座道观仙气缭绕，似有仙人在此。 | Y12: 1060
P13: =IF(Q13="","",VLOOKUP(Q13,条件类型查询!A:B,2,FALSE)) -> 
A14: 11 | B14: 1101;1102 | C14: 2 | E14: 1 | F14: 0 | G14: 1 | I14: 1001 | J14: 10 | P14: =IF(Q14="","",VLOOKUP(Q14,条件类型查询!A:B,2,FALSE)) ->  | V14: 遇到怪物1-修为 | X14: =COUNTIF(EventLinkConfig!K:K,EventConfig!A14) -> 2 | Y14: =IF($X14>=Y$3,$A14*100+Y$3,"") -> 1101 | Z14: =IF($X14>=Z$3,$A14*100+Z$3,"") -> 1102
A15: 12 | B15: 1201;1202;1203 | C15: 2 | E15: 1 | F15: 0 | G15: 1 | I15: 1001 | J15: 10 | P15: =IF(Q15="","",VLOOKUP(Q15,条件类型查询!A:B,2,FALSE)) ->  | V15: 对话-功法灵气 | X15: =COUNTIF(EventLinkConfig!K:K,EventConfig!A15) -> 3 | Y15: =IF($X15>=Y$3,$A15*100+Y$3,"") -> 1201 | Z15: 1202 | AA15: 1203
A16: 13 | B16: 1301;1302;1303;1304 | C16: 2 | E16: 1 | F16: 0 | G16: 1 | I16: 1001 | J16: 10 | P16: =IF(Q16="","",VLOOKUP(Q16,条件类型查询!A:B,2,FALSE)) ->  | V16: 对话-法宝灵韵 | X16: =COUNTIF(EventLinkConfig!K:K,EventConfig!A16) -> 4 | Y16: =IF($X16>=Y$3,$A16*100+Y$3,"") -> 1301 | Z16: 1302 | AA16: 1303 | AB16: 1304
A17: 14 | B17: 1401;1402 | C17: 2 | E17: 1 | F17: 0 | G17: 1 | I17: 1001 | J17: 10 | P17: =IF(Q17="","",VLOOKUP(Q17,条件类型查询!A:B,2,FALSE)) ->  | V17: 遇到怪物2-修为 | X17: =COUNTIF(EventLinkConfig!K:K,EventConfig!A17) -> 2 | Y17: =IF($X17>=Y$3,$A17*100+Y$3,"") -> 1401 | Z17: 1402
A18: 15 | B18: 1501;1502 | C18: 2 | E18: 1 | F18: 0 | G18: 1 | I18: 1001 | J18: 10 | P18: =IF(Q18="","",VLOOKUP(Q18,条件类型查询!A:B,2,FALSE)) ->  | V18: 遇到怪物3-修为 | X18: =COUNTIF(EventLinkConfig!K:K,EventConfig!A18) -> 2 | Y18: =IF($X18>=Y$3,$A18*100+Y$3,"") -> 1501 | Z18: 1502
P19: =IF(Q19="","",VLOOKUP(Q19,条件类型查询!A:B,2,FALSE)) -> 
P20: =IF(Q20="","",VLOOKUP(Q20,条件类型查询!A:B,2,FALSE)) -> 
A21: 10001 | B21: 1000101;1000102;1000103;1000104 | C21: 4 | D21: 1 | E21: 1 | F21: 10 | G21: 1 | I21: 1001 | J21: 10 | N21: 1 | O21: 1 | P21: =IF(Q21="","",VLOOKUP(Q21,条件类型查询!A:B,2,FALSE)) ->  | T21: 1906 | U21: 1914 | V21: 鲲鹏何在 | W21: 神识未灭 | X21: =COUNTIF(EventLinkConfig!K:K,EventConfig!A21) -> 4 | Y21: =IF($X21>=Y$3,$A21*100+Y$3,"") -> 1000101 | Z21: =IF($X21>=Z$3,$A21*100+Z$3,"") -> 1000102 | AA21: 1000103 | AB21: 1000104
A22: 10002 | B22: 1000201;1000202;1000203 | C22: 4 | D22: 1 | E22: 1 | F22: 10 | G22: 1 | I22: 1001 | J22: 10 | N22: 1 | O22: 1 | P22: =IF(Q22="","",VLOOKUP(Q22,条件类型查询!A:B,2,FALSE)) ->  | T22: 1907 | U22: 1915 | V22: 北海迷径1 | W22: 御剑而行 | X22: =COUNTIF(EventLinkConfig!K:K,EventConfig!A22) -> 3 | Y22: =IF($X22>=Y$3,$A22*100+Y$3,"") -> 1000201 | Z22: 1000202 | AA22: 1000203
A23: 10003 | B23: 1000301;1000302;1000303;1000304;1000305;1000306;1000307;1000308;1000309 | C23: 4 | D23: 1 | E23: 1 | F23: 10 | G23: 1 | I23: 1001 | J23: 10 | N23: 1 | O23: 1 | P23: =IF(Q23="","",VLOOKUP(Q23,条件类型查询!A:B,2,FALSE)) ->  | T23: 1908 | U23: 1916 | V23: 北海迷径2 | W23: 雀笑大鹏 | X23: =COUNTIF(EventLinkConfig!K:K,EventConfig!A23) -> 9 | Y23: 1000301 | Z23: 1000302 | AA23: 1000303 | AB23: 1000304 | AC23: 1000305 | AD23: 1000306 | AE23: 1000307 | AF23: 1000308 | AG23: 1000309
A24: 10004 | B24: 1000401;1000402;1000403;1000404 | C24: 4 | D24: 1 | E24: 1 | F24: 10 | G24: 1 | I24: 1001 | J24: 10 | N24: 1 | O24: 1 | P24: =IF(Q24="","",VLOOKUP(Q24,条件类型查询!A:B,2,FALSE)) ->  | T24: 1909 | U24: 1917 | V24: 古径阵法 | W24: 击败结界兽 | X24: =COUNTIF(EventLinkConfig!K:K,EventConfig!A24) -> 4 | Y24: 1000401 | Z24: 1000402 | AA24: 1000403 | AB24: 1000404
A25: 10005 | B25: 1000501;1000502;1000503;1000504;1000505;1000506;1000507;1000508;1000509;1000510;1000511;1000512;1000513;1000514 | C25: 4 | D25: 1 | E25: 1 | F25: 10 | G25: 1 | I25: 1001 | J25: 10 | N25: 1 | O25: 1 | P25: =IF(Q25="","",VLOOKUP(Q25,条件类型查询!A:B,2,FALSE)) ->  | T25: 2135 | U25: 2137 | V25: 浮空之岛1 | W25: 初见疯道人 | X25: =COUNTIF(EventLinkConfig!K:K,EventConfig!A25) -> 14 | Y25: 1000501 | Z25: 1000502 | AA25: 1000503 | AB25: 1000504 | AC25: 1000505 | AD25: 1000506 | AE25: 1000507 | AF25: 1000508 | AG25: 1000509 | AH25: 1000510 | AI25: 1000511 | AJ25: 1000512 | AK25: 1000513 | AL25: 1000514
A26: 10006 | B26: 1000601;1000602;1000603;1000604;1000605;1000606 | C26: 4 | D26: 1 | E26: 1 | F26: 10 | G26: 1 | I26: 1001 | J26: 10 | N26: 1 | O26: 1 | P26: =IF(Q26="","",VLOOKUP(Q26,条件类型查询!A:B,2,FALSE)) ->  | T26: 2136 | U26: 2138 | V26: 浮空之岛2 | W26: 筑基中期 | X26: =COUNTIF(EventLinkConfig!K:K,EventConfig!A26) -> 6 | Y26: 1000601 | Z26: 1000602 | AA26: 1000603 | AB26: 1000604 | AC26: 1000605 | AD26: 1000606
A28: 1001 | B28: 1001;1002;1003;1004;1005 | C28: 99 | D28: 4 | E28: 1 | F28: 10 | G28: 1 | I28: 1001 | J28: 10 | T28: 1943 | U28: 1944 | V28: 受伤的鸟 | W28: 你发现一只奄奄一息的鸟，决定上前一探究竟。 | Y28: 1001 | Z28: 1002 | AA28: 1003 | AB28: 1004 | AC28: 1005
A30: 20001 | B30: 1001;1002;1003;1004;1005 | C30: 5 | E30: 1 | F30: 0 | G30: 1 | I30: 1001 | J30: 10 | T30: 174 | U30: 1936 | V30: 受伤的狼 | W30: 你发现一只奄奄一息的狼，决定上前一探究竟。 | Y30: 1001 | Z30: 1002 | AA30: 1003 | AB30: 1004 | AC30: 1005
A31: 20002 | B31: 1010;1011;1012;1013;1014;1015;1016 | C31: 5 | E31: 1 | F31: 0 | G31: 1 | I31: 1001 | J31: 10 | P31: =IF(Q31="","",VLOOKUP(Q31,条件类型查询!A:B,2,FALSE)) ->  | T31: 175 | U31: 1937 | V31: 鹬蚌相争 | W31: 附近的小树林闹的不可开交，你决定去看看怎么回事。 | Y31: 1010 | Z31: 1011 | AA31: 1012 | AB31: 1013 | AC31: 1014 | AD31: 1015 | AE31: 1016
A32: 20003 | B32: 1001;1002;1003;1004;1005 | C32: 5 | E32: 1 | F32: 0 | G32: 1 | I32: 1001 | J32: 10 | T32: 1943 | U32: 1944 | V32: 受伤的鸟 | W32: 你发现一只奄奄一息的鸟，决定上前一探究竟。 | Y32: 1001 | Z32: 1002 | AA32: 1003 | AB32: 1004 | AC32: 1005
A34: 9001 | B34: 1001;1002;1003;1004;1005 | C34: 99 | D34: 3 | E34: 1 | F34: 0 | G34: 1 | I34: 1001 | J34: 10 | T34: 174 | U34: 1936 | V34: 受伤的狼 | W34: 你发现一只奄奄一息的狼，决定上前一探究竟。 | Y34: 1001 | Z34: 1002 | AA34: 1003 | AB34: 1004 | AC34: 1005
A35: 9002 | B35: 1010;1011;1012;1013;1014;1015;1016 | C35: 99 | D35: 3 | E35: 1 | F35: 0 | G35: 1 | I35: 1001 | J35: 10 | P35: =IF(Q35="","",VLOOKUP(Q35,条件类型查询!A:B,2,FALSE)) ->  | T35: 175 | U35: 1937 | V35: 鹬蚌相争 | W35: 附近的小树林闹的不可开交，你决定去看看怎么回事。 | Y35: 1010 | Z35: 1011 | AA35: 1012 | AB35: 1013 | AC35: 1014 | AD35: 1015 | AE35: 1016
A36: 9003 | B36: 9003;9004;9005;9006;9007;9008 | C36: 99 | D36: 5 | E36: 1 | F36: 0 | G36: 1 | I36: 1001 | J36: 10 | T36: 2035 | U36: 2036 | V36: 幽谷剑鸣 | W36: 你在闭关修炼时，感受到一股凌厉的剑意波动。深入探查，发现一名白衣剑修“清霜”盘坐于谷中，周围剑气环绕，正与一柄散发不祥气息的灵剑对峙。她似在参悟剑诀，却灵气不足，剑灵桀骜。 | Y36: 9003 | Z36: 9004 | AA36: 9005 | AB36: 9006 | AC36: 9007 | AD36: 9008
A38: 9025 | B38: 9025;9026 | C38: 1 | D38: 3 | E38: 1 | F38: 0 | G38: 1 | I38: 1001 | J38: 10 | N38: 1 | O38: 2 | T38: 2067 | U38: 2068 | V38: 惠子.没用的大葫芦 | W38: 惠子种的葫芦没用，他非常生气
A40: 9014 | B40: 9014 | C40: 99 | D40: 3 | E40: 1 | F40: 0 | G40: 1 | I40: 1001 | J40: 10 | K40: 9031 | N40: 2 | O40: 2 | T40: 2069 | U40: 2070 | V40: 发现魔修 | W40: 发现一群魔修，正在夺人钱财
A42: 9031 | B42: 9031 | C42: 99 | D42: 3 | E42: 1 | F42: 0 | G42: 1 | I42: 1001 | J42: 10 | L42: 30 | M42: 2 | N42: 3 | O42: 2 | T42: 2071 | U42: 2072 | V42: 魔修 | W42: 打败魔休

Sheet EventLinkConfig
A1: ID | B1: conciseEventMessage | D1: EventConditionMessage | F1: NPCID | H1: LanID | J1: DialogueType | K1: EventID | M1: ConditionId | Q1: optionType | R1: optionPara1 | S1: optionPara2 | Y1: PrizeIDs | Z1: PrizeNums | AA1: ResultType | AB1: ResultOptions
A2: int | B2: int | D2: int | F2: int | H2: int[] | J2: int | K2: int | M2: int[] | Q2: int | R2: int[] | S2: int[] | Y2: int[] | Z2: int[] | AA2: int | AB2: int[]
A4: 条件ID | B4: 任务列表中的简洁描述 | C4: 任务列表中的简洁描述 | D4: 无任务目标时的补充文本 | E4: 无任务目标时的补充文本 | F4: 对话NPCID | G4: NPC | H4: 对话 | I4: 对话1 | J4: 对话框类型 | K4: 属于哪个事件 | L4: 步骤 | M4: 条件判断类型 | N4: 任务目标1 | O4: 任务目标2 | P4: 条件判断内容 | Q4: 步骤类型 1=提供选项 2=进入战斗 3=获得奖励 4=扣除道具 | R4: 事件常量1 1=步骤IDs 2=战斗ID | S4: 事件常量2 1=事件文本 | T4: 选择1 | U4: 选择1 | V4: 选择2 | W4: 选择2 | Y4: 事件结局奖励 | Z4: 事件结局奖励数量 | AA4: 事件结束类型 1：跳转步骤 2：根据战斗结果跳转 3.触发新事件 | AB4: 事件结局后提供的选项 1.EventLinkId 2.胜利id;失败id 3.EventConfigId
A5: 100 | H5: 216 | I5: 你被怪物击败，神识也随之消散了。 | M5: =_xlfn.TEXTJOIN(";",1,N5:O5) ->  | P5: =IF(N5="","","-"&VLOOKUP(N5,EventConditionConfig!A:C,3,FALSE)&IF(O5="","",CHAR(10)&"-"&VLOOKUP(O5,EventConditionConfig!A:C,3,FALSE))) -> 
A6: 101 | H6: 216 | I6: 你败下阵来，感到头晕目眩，试图努力回忆起刚才发生的事情。(回到主界面重新触发剧情） | M6: =_xlfn.TEXTJOIN(";",1,N6:O6) ->  | P6: =IF(N6="","","-"&VLOOKUP(N6,EventConditionConfig!A:C,3,FALSE)&IF(O6="","",CHAR(10)&"-"&VLOOKUP(O6,EventConditionConfig!A:C,3,FALSE))) -> 
P7: =IF(N7="","","-"&VLOOKUP(N7,EventConditionConfig!A:C,3,FALSE)&IF(O7="","",CHAR(10)&"-"&VLOOKUP(O7,EventConditionConfig!A:C,3,FALSE))) -> 
A8: 1001 | B8: 177 | F8: 2 | H8: 177 | I8: 你遇到一只奄奄一息的野狼，从周围四散的血迹来看，想必它刚才经历了一场恶战。 | P8: =IF(N8="","","-"&VLOOKUP(N8,EventConditionConfig!A:C,3,FALSE)&IF(O8="","",CHAR(10)&"-"&VLOOKUP(O8,EventConditionConfig!A:C,3,FALSE))) ->  | Q8: 1 | R8: 1002;1003 | S8: 198;199 | U8: 趁它虚弱赶紧除掉它！ | W8: 你不忍见它受苦，选择帮它减轻痛苦。
A9: 1002 | B9: 178 | H9: 178 | I9: 野狼用它最后一口气，朝你扑了过来！ | P9: =IF(N9="","","-"&VLOOKUP(N9,EventConditionConfig!A:C,3,FALSE)&IF(O9="","",CHAR(10)&"-"&VLOOKUP(O9,EventConditionConfig!A:C,3,FALSE))) ->  | Q9: 2 | R9: 100001 | AA9: 2 | AB9: 1004;100
A10: 1003 | B10: 179 | H10: 179 | I10: 你抽出匕首准备了结它的生命，却发现怀中还躺着一只刚出生的狼崽。 | P10: =IF(N10="","","-"&VLOOKUP(N10,EventConditionConfig!A:C,3,FALSE)&IF(O10="","",CHAR(10)&"-"&VLOOKUP(O10,EventConditionConfig!A:C,3,FALSE))) ->  | Q10: 1 | R10: 1005 | S10: 200
A11: 1004 | B11: 180 | H11: 180 | I11: 随着你的最后一击，野狼应声倒下，你罔顾它幽怨的眼神，从它怀中拿走了一些财物。 | P11: =IF(N11="","","-"&VLOOKUP(N11,EventConditionConfig!A:C,3,FALSE)&IF(O11="","",CHAR(10)&"-"&VLOOKUP(O11,EventConditionConfig!A:C,3,FALSE))) ->  | Q11: 3 | Y11: 1002 | Z11: 100
A12: 1005 | B12: 181 | H12: 181 | I12: 母狼似乎懂你要做什么，眼神归于平静。你终结了她，决定收养这只小狼仔。 | P12: =IF(N12="","","-"&VLOOKUP(N12,EventConditionConfig!A:C,3,FALSE)&IF(O12="","",CHAR(10)&"-"&VLOOKUP(O12,EventConditionConfig!A:C,3,FALSE))) ->  | Q12: 3 | Y12: 1001 | Z12: 50
P13: =IF(N13="","","-"&VLOOKUP(N13,EventConditionConfig!A:C,3,FALSE)&IF(O13="","",CHAR(10)&"-"&VLOOKUP(O13,EventConditionConfig!A:C,3,FALSE))) -> 
A14: 1010 | B14: 182 | H14: 182 | I14: 从不远处传来刀剑声，听起来双方已经精疲力尽了。 | P14: =IF(N14="","","-"&VLOOKUP(N14,EventConditionConfig!A:C,3,FALSE)&IF(O14="","",CHAR(10)&"-"&VLOOKUP(O14,EventConditionConfig!A:C,3,FALSE))) ->  | Q14: 1 | R14: 1011;1012 | S14: 201;202 | U14: 去看看 | W14: (需拥有法宝凝神珠）听起来都是鸡毛蒜皮的小摩擦，你选择祭出凝神珠化解他们的怨气。
A15: 1011 | B15: 183 | H15: 183 | I15: 你走进一看，原来是一伙山贼分赃不均内讧了起来。你看着旁边被砍的七零八落的轿子和这群山贼，选择怎么做呢： | P15: =IF(N15="","","-"&VLOOKUP(N15,EventConditionConfig!A:C,3,FALSE)&IF(O15="","",CHAR(10)&"-"&VLOOKUP(O15,EventConditionConfig!A:C,3,FALSE))) ->  | Q15: 1 | R15: 1014;1015 | S15: 203;204 | U15: 你顿时杀心四起，决定杀了贼寇，救出轿中之人 | W15: 盗贼们个个双眼杀的通红，你决定来个渔翁得利。
A16: 1012 | B16: 184 | H16: 184;187 | I16: 法宝现身，效果立竿见影，刀剑声逐渐消失，这个世界安静了。 | P16: =IF(N16="","","-"&VLOOKUP(N16,EventConditionConfig!A:C,3,FALSE)&IF(O16="","",CHAR(10)&"-"&VLOOKUP(O16,EventConditionConfig!A:C,3,FALSE))) ->  | Q16: 3 | Y16: 1001 | Z16: 10 | AD16: 1 | AE16: 1001;1
A17: 1014 | B17: 185 | H17: 185 | I17: 你怒斥贼寇的恶行，贼寇们被你激怒了，准备迎战！ | P17: =IF(N17="","","-"&VLOOKUP(N17,EventConditionConfig!A:C,3,FALSE)&IF(O17="","",CHAR(10)&"-"&VLOOKUP(O17,EventConditionConfig!A:C,3,FALSE))) ->  | Q17: 2 | R17: 100002 | AA17: 2 | AB17: 1016;100 | AD17: 2 | AE17: 4;150
A18: 1015 | B18: 186 | H18: 186;189 | I18: 你趁人不备顺走了轿内主人的包裹，任留轿内人痛苦的挣扎。 | P18: =IF(N18="","","-"&VLOOKUP(N18,EventConditionConfig!A:C,3,FALSE)&IF(O18="","",CHAR(10)&"-"&VLOOKUP(O18,EventConditionConfig!A:C,3,FALSE))) ->  | Q18: 3 | Y18: 1003 | Z18: 1000
A19: 1016 | B19: 188 | H19: 188 | I19: 杀退贼寇，你上演了一出英雄救美的桥段。姑娘为了答谢你的救命之恩，将藏在贴身处的珍贵首饰赠与你作为定情信物。 | P19: =IF(N19="","","-"&VLOOKUP(N19,EventConditionConfig!A:C,3,FALSE)&IF(O19="","",CHAR(10)&"-"&VLOOKUP(O19,EventConditionConfig!A:C,3,FALSE))) ->  | Y19: 1001 | Z19: 200
P20: =IF(N20="","","-"&VLOOKUP(N20,EventConditionConfig!A:C,3,FALSE)&IF(O20="","",CHAR(10)&"-"&VLOOKUP(O20,EventConditionConfig!A:C,3,FALSE))) -> 
A21: 1020 | B21: 190 | H21: 190 | I21: 从不远处传来刀剑声，听起来双方已经精疲力尽了。 | P21: =IF(N21="","","-"&VLOOKUP(N21,EventConditionConfig!A:C,3,FALSE)&IF(O21="","",CHAR(10)&"-"&VLOOKUP(O21,EventConditionConfig!A:C,3,FALSE))) ->  | Q21: 1 | R21: 1021;1022 | S21: 201;202 | U21: 去看看 | W21: 使用法宝息事宁人
A22: 1021 | B22: 191 | H22: 191 | I22: 你走进一看，原来是一伙山贼抢了一名坐在官轿内的女子，因分赃不均内讧了起来。山贼二话不说就朝你冲了过来！ | P22: =IF(N22="","","-"&VLOOKUP(N22,EventConditionConfig!A:C,3,FALSE)&IF(O22="","",CHAR(10)&"-"&VLOOKUP(O22,EventConditionConfig!A:C,3,FALSE))) ->  | Q22: 2 | R22: 100003 | Y22: 1002 | Z22: 100 | AA22: 2 | AB22: 1026;100
A23: 1022 | B23: 192 | H23: 192 | I23: 法宝现身，效果立竿见影，刀剑声逐渐消失，这个世界安静了。 | P23: =IF(N23="","","-"&VLOOKUP(N23,EventConditionConfig!A:C,3,FALSE)&IF(O23="","",CHAR(10)&"-"&VLOOKUP(O23,EventConditionConfig!A:C,3,FALSE))) ->  | Q23: 4 | Y23: 1002 | Z23: 10 | AD23: 1 | AE23: 1001;1
A24: 1024 | B24: 193 | H24: 193;196 | I24: 你大声怒斥贼寇的恶行，贼首发现你了，准备迎战！ | P24: =IF(N24="","","-"&VLOOKUP(N24,EventConditionConfig!A:C,3,FALSE)&IF(O24="","",CHAR(10)&"-"&VLOOKUP(O24,EventConditionConfig!A:C,3,FALSE))) ->  | Q24: 2 | R24: 100004 | Y24: 1004 | Z24: 100 | AA24: 2 | AB24: 1016;100 | AD24: 2 | AE24: 4;150
A25: 1025 | B25: 194 | H25: 194;197 | I25: 你趁人不备顺走了轿内主人的包裹，任留轿内人痛苦的挣扎。 | P25: =IF(N25="","","-"&VLOOKUP(N25,EventConditionConfig!A:C,3,FALSE)&IF(O25="","",CHAR(10)&"-"&VLOOKUP(O25,EventConditionConfig!A:C,3,FALSE))) ->  | Q25: 3 | Y25: 1002 | Z25: 1000
A26: 1026 | B26: 207 | H26: 207 | I26: 你将山贼们打的落花流水，成功吸引了山贼头子的注意。 | P26: =IF(N26="","","-"&VLOOKUP(N26,EventConditionConfig!A:C,3,FALSE)&IF(O26="","",CHAR(10)&"-"&VLOOKUP(O26,EventConditionConfig!A:C,3,FALSE))) ->  | Q26: 1 | R26: 1024;1025 | S26: 205;206 | U26: 选择正面迎战山贼头领（困难） | W26: 你决定避开山贼头领的视线，来个渔翁得利。
P27: =IF(N27="","","-"&VLOOKUP(N27,EventConditionConfig!A:C,3,FALSE)&IF(O27="","",CHAR(10)&"-"&VLOOKUP(O27,EventConditionConfig!A:C,3,FALSE))) -> 
A28: 1030 | B28: 221 | H28: 221 | I28: 发现一个血迹斑斑的背包，好像刚刚发生了战斗，我翻翻背包... | P28: =IF(N28="","","-"&VLOOKUP(N28,EventConditionConfig!A:C,3,FALSE)&IF(O28="","",CHAR(10)&"-"&VLOOKUP(O28,EventConditionConfig!A:C,3,FALSE))) ->  | Q28: 3 | Y28: 1002 | Z28: 10
P29: =IF(N29="","","-"&VLOOKUP(N29,EventConditionConfig!A:C,3,FALSE)&IF(O29="","",CHAR(10)&"-"&VLOOKUP(O29,EventConditionConfig!A:C,3,FALSE))) -> 
A30: 1040 | B30: 222 | H30: 222 | I30: 啥也没有....除了钱 | P30: =IF(N30="","","-"&VLOOKUP(N30,EventConditionConfig!A:C,3,FALSE)&IF(O30="","",CHAR(10)&"-"&VLOOKUP(O30,EventConditionConfig!A:C,3,FALSE))) ->  | Q30: 3 | Y30: 1002 | Z30: 10
P31: =IF(N31="","","-"&VLOOKUP(N31,EventConditionConfig!A:C,3,FALSE)&IF(O31="","",CHAR(10)&"-"&VLOOKUP(O31,EventConditionConfig!A:C,3,FALSE))) -> 
A32: 1050 | B32: 223 | H32: 223 | I32: 两夫妻在吵架，似乎为了一件大事.. | P32: =IF(N32="","","-"&VLOOKUP(N32,EventConditionConfig!A:C,3,FALSE)&IF(O32="","",CHAR(10)&"-"&VLOOKUP(O32,EventConditionConfig!A:C,3,FALSE))) ->  | Q32: 3 | Y32: 1002;1001 | Z32: 10;20
P33: =IF(N33="","","-"&VLOOKUP(N33,EventConditionConfig!A:C,3,FALSE)&IF(O33="","",CHAR(10)&"-"&VLOOKUP(O33,EventConditionConfig!A:C,3,FALSE))) -> 
A34: 1060 | B34: 224 | H34: 224 | I34: 没有任何发现，但感觉空气很好....下次有空再来看看 | P34: =IF(N34="","","-"&VLOOKUP(N34,EventConditionConfig!A:C,3,FALSE)&IF(O34="","",CHAR(10)&"-"&VLOOKUP(O34,EventConditionConfig!A:C,3,FALSE))) -> 
P35: =IF(N35="","","-"&VLOOKUP(N35,EventConditionConfig!A:C,3,FALSE)&IF(O35="","",CHAR(10)&"-"&VLOOKUP(O35,EventConditionConfig!A:C,3,FALSE))) -> 
P36: =IF(N36="","","-"&VLOOKUP(N36,EventConditionConfig!A:C,3,FALSE)&IF(O36="","",CHAR(10)&"-"&VLOOKUP(O36,EventConditionConfig!A:C,3,FALSE))) -> 
P37: =IF(N37="","","-"&VLOOKUP(N37,EventConditionConfig!A:C,3,FALSE)&IF(O37="","",CHAR(10)&"-"&VLOOKUP(O37,EventConditionConfig!A:C,3,FALSE))) -> 
A38: =K38*100+L38 -> 1101 | H38: 208 | I38: 事件10001：一只[怪物1]袭击了你，准备迎战 | K38: 11 | L38: =IF(K38=K37,L37+1,1) -> 1 | P38: =IF(N38="","","-"&VLOOKUP(N38,EventConditionConfig!A:C,3,FALSE)&IF(O38="","",CHAR(10)&"-"&VLOOKUP(O38,EventConditionConfig!A:C,3,FALSE))) ->  | Q38: 2 | R38: 100001 | AA38: 2 | AB38: 1102;100
A39: =K39*100+L39 -> 1102 | H39: 209 | I39: 你击败了怪物，并从它身上吸取了一些修为 | K39: 11 | L39: =IF(K39=K38,L38+1,1) -> 2 | P39: =IF(N39="","","-"&VLOOKUP(N39,EventConditionConfig!A:C,3,FALSE)&IF(O39="","",CHAR(10)&"-"&VLOOKUP(O39,EventConditionConfig!A:C,3,FALSE))) ->  | Q39: 3 | Y39: 1003 | Z39: 3000
P40: =IF(N40="","","-"&VLOOKUP(N40,EventConditionConfig!A:C,3,FALSE)&IF(O40="","",CHAR(10)&"-"&VLOOKUP(O40,EventConditionConfig!A:C,3,FALSE))) -> 
A41: =K41*100+L41 -> 1201 | H41: 210 | I41: 你偶遇一处仙气四溢无人生活的洞穴 | K41: 12 | L41: =IF(K41=K40,L40+1,1) -> 1 | P41: =IF(N41="","","-"&VLOOKUP(N41,EventConditionConfig!A:C,3,FALSE)&IF(O41="","",CHAR(10)&"-"&VLOOKUP(O41,EventConditionConfig!A:C,3,FALSE))) ->  | AA41: 1 | AB41: =A42 -> 1202
A42: =K42*100+L42 -> 1202 | H42: 211 | I42: 不知哪位高人在洞穴内壁留下绝世秘籍 | K42: 12 | L42: =IF(K42=K41,L41+1,1) -> 2 | P42: =IF(N42="","","-"&VLOOKUP(N42,EventConditionConfig!A:C,3,FALSE)&IF(O42="","",CHAR(10)&"-"&VLOOKUP(O42,EventConditionConfig!A:C,3,FALSE))) ->  | AA42: 1 | AB42: =A43 -> 1203
A43: =K43*100+L43 -> 1203 | H43: 1903 | I43: 你仔细研读后，功法得到精进 | K43: 12 | L43: =IF(K43=K42,L42+1,1) -> 3 | P43: =IF(N43="","","-"&VLOOKUP(N43,EventConditionConfig!A:C,3,FALSE)&IF(O43="","",CHAR(10)&"-"&VLOOKUP(O43,EventConditionConfig!A:C,3,FALSE))) ->  | Q43: 3 | Y43: 1005 | Z43: 500
P44: =IF(N44="","","-"&VLOOKUP(N44,EventConditionConfig!A:C,3,FALSE)&IF(O44="","",CHAR(10)&"-"&VLOOKUP(O44,EventConditionConfig!A:C,3,FALSE))) -> 
A45: =K45*100+L45 -> 1301 | H45: 212 | I45: 你在飞行途中不慎滑倒 | K45: 13 | L45: =IF(K45=K44,L44+1,1) -> 1 | P45: =IF(N45="","","-"&VLOOKUP(N45,EventConditionConfig!A:C,3,FALSE)&IF(O45="","",CHAR(10)&"-"&VLOOKUP(O45,EventConditionConfig!A:C,3,FALSE))) ->  | AA45: 1 | AB45: =A46 -> 1302
A46: =K46*100+L46 -> 1302 | H46: 213 | I46: 原来是脚下有一块圆润的微微发光的石头 | K46: 13 | L46: =IF(K46=K45,L45+1,1) -> 2 | P46: =IF(N46="","","-"&VLOOKUP(N46,EventConditionConfig!A:C,3,FALSE)&IF(O46="","",CHAR(10)&"-"&VLOOKUP(O46,EventConditionConfig!A:C,3,FALSE))) ->  | AA46: 1 | AB46: =A47 -> 1303
A47: 1303 | H47: 214 | I47: 你拾起来一看，原来它蕴含了丰富的法宝灵韵 | K47: 13 | L47: 3 | P47: =IF(N47="","","-"&VLOOKUP(N47,EventConditionConfig!A:C,3,FALSE)&IF(O47="","",CHAR(10)&"-"&VLOOKUP(O47,EventConditionConfig!A:C,3,FALSE))) ->  | AA47: 1 | AB47: =A48 -> 1304
A48: 1304 | H48: 215 | I48: 原本郁闷的心情，突然变的好了起来，哈哈~ | K48: 13 | L48: 4 | P48: =IF(N48="","","-"&VLOOKUP(N48,EventConditionConfig!A:C,3,FALSE)&IF(O48="","",CHAR(10)&"-"&VLOOKUP(O48,EventConditionConfig!A:C,3,FALSE))) ->  | Q48: 3 | Y48: 1006 | Z48: 500
P49: =IF(N49="","","-"&VLOOKUP(N49,EventConditionConfig!A:C,3,FALSE)&IF(O49="","",CHAR(10)&"-"&VLOOKUP(O49,EventConditionConfig!A:C,3,FALSE))) -> 
A50: 1401 | H50: 1901 | I50: 事件10005：一只[怪物2]袭击了你，准备迎战 | K50: 14 | L50: =IF(K50=K49,L49+1,1) -> 1 | P50: =IF(N50="","","-"&VLOOKUP(N50,EventConditionConfig!A:C,3,FALSE)&IF(O50="","",CHAR(10)&"-"&VLOOKUP(O50,EventConditionConfig!A:C,3,FALSE))) ->  | Q50: 2 | R50: 100002 | AA50: 2 | AB50: 1402;100
A51: 1402 | H51: 209 | I51: 你击败了怪物，并从它身上吸取了一些修为 | K51: 14 | L51: =IF(K51=K50,L50+1,1) -> 2 | P51: =IF(N51="","","-"&VLOOKUP(N51,EventConditionConfig!A:C,3,FALSE)&IF(O51="","",CHAR(10)&"-"&VLOOKUP(O51,EventConditionConfig!A:C,3,FALSE))) ->  | Q51: 3 | Y51: 1003 | Z51: 3000
P52: =IF(N52="","","-"&VLOOKUP(N52,EventConditionConfig!A:C,3,FALSE)&IF(O52="","",CHAR(10)&"-"&VLOOKUP(O52,EventConditionConfig!A:C,3,FALSE))) -> 
A53: 1501 | H53: 1902 | I53: 事件10006：一只[怪物3]袭击了你，准备迎战 | K53: 15 | L53: =IF(K53=K52,L52+1,1) -> 1 | P53: =IF(N53="","","-"&VLOOKUP(N53,EventConditionConfig!A:C,3,FALSE)&IF(O53="","",CHAR(10)&"-"&VLOOKUP(O53,EventConditionConfig!A:C,3,FALSE))) ->  | Q53: 2 | R53: 100003 | AA53: 2 | AB53: 1502;100
A54: 1502 | H54: 209 | I54: 你击败了怪物，并从它身上吸取了一些修为 | K54: 15 | L54: =IF(K54=K53,L53+1,1) -> 2 | P54: =IF(N54="","","-"&VLOOKUP(N54,EventConditionConfig!A:C,3,FALSE)&IF(O54="","",CHAR(10)&"-"&VLOOKUP(O54,EventConditionConfig!A:C,3,FALSE))) ->  | Q54: 3 | Y54: 1003 | Z54: 3000
P55: =IF(N55="","","-"&VLOOKUP(N55,EventConditionConfig!A:C,3,FALSE)&IF(O55="","",CHAR(10)&"-"&VLOOKUP(O55,EventConditionConfig!A:C,3,FALSE))) -> 
A56: 9003 | B56: 2036 | H56: 2036 | I56: 你在闭关修炼时，感受到一股凌厉的剑意波动。深入探查，发现一名白衣剑修“清霜”盘坐于谷中，周围剑气环绕，正与一柄散发不祥气息的灵剑对峙。她似在参悟剑诀，却灵气不足，剑灵桀骜。 | P56: =IF(N56="","","-"&VLOOKUP(N56,EventConditionConfig!A:C,3,FALSE)&IF(O56="","",CHAR(10)&"-"&VLOOKUP(O56,EventConditionConfig!A:C,3,FALSE))) ->  | Q56: 1 | R56: 9004;9006 | S56: 2041;2042
A57: 9004 | B57: 2037 | H57: 2037 | I57: 你上前以剑意对抗剑灵 | P57: =IF(N57="","","-"&VLOOKUP(N57,EventConditionConfig!A:C,3,FALSE)&IF(O57="","",CHAR(10)&"-"&VLOOKUP(O57,EventConditionConfig!A:C,3,FALSE))) ->  | Q57: 2 | R57: 100001 | AA57: 2 | AB57: 9005;100
A58: 9005 | B58: 2038 | H58: 2038 | I58: 成功压制剑灵，清霜赠你“霜华剑符”并结下道友之谊 | P58: =IF(N58="","","-"&VLOOKUP(N58,EventConditionConfig!A:C,3,FALSE)&IF(O58="","",CHAR(10)&"-"&VLOOKUP(O58,EventConditionConfig!A:C,3,FALSE))) -> 
A59: 9006 | B59: 2039 | H59: 2039 | I59: 你察觉谷中灵气匮乏，清霜剑意凝滞。神识探查得知，附近秘境可采集“玄冰花” | P59: =IF(N59="","","-"&VLOOKUP(N59,EventConditionConfig!A:C,3,FALSE)&IF(O59="","",CHAR(10)&"-"&VLOOKUP(O59,EventConditionConfig!A:C,3,FALSE))) -> 
A60: 9007 | B60: 2040 | H60: 2040 | I60: 献上玄冰花，清霜炼化灵气突破瓶颈，赠你“玄霜剑意” | P60: =IF(N60="","","-"&VLOOKUP(N60,EventConditionConfig!A:C,3,FALSE)&IF(O60="","",CHAR(10)&"-"&VLOOKUP(O60,EventConditionConfig!A:C,3,FALSE))) ->  | Q60: 4 | AA60: 1 | AB60: 9007
A61: 9008 | P61: =IF(N61="","","-"&VLOOKUP(N61,EventConditionConfig!A:C,3,FALSE)&IF(O61="","",CHAR(10)&"-"&VLOOKUP(O61,EventConditionConfig!A:C,3,FALSE))) ->  | Q61: 3 | Y61: 1001 | Z61: 999
P62: =IF(N62="","","-"&VLOOKUP(N62,EventConditionConfig!A:C,3,FALSE)&IF(O62="","",CHAR(10)&"-"&VLOOKUP(O62,EventConditionConfig!A:C,3,FALSE))) -> 
P63: =IF(N63="","","-"&VLOOKUP(N63,EventConditionConfig!A:C,3,FALSE)&IF(O63="","",CHAR(10)&"-"&VLOOKUP(O63,EventConditionConfig!A:C,3,FALSE))) -> 
P64: =IF(N64="","","-"&VLOOKUP(N64,EventConditionConfig!A:C,3,FALSE)&IF(O64="","",CHAR(10)&"-"&VLOOKUP(O64,EventConditionConfig!A:C,3,FALSE))) -> 
A65: 9025 | B65: 2074 | D65: 2073 | E65: 和惠子交谈 | H65: 2074 | I65: 惠子种的葫芦没用，他非常生气，需要打败魔休 | P65: =IF(N65="","","-"&VLOOKUP(N65,EventConditionConfig!A:C,3,FALSE)&IF(O65="","",CHAR(10)&"-"&VLOOKUP(O65,EventConditionConfig!A:C,3,FALSE))) ->  | Q65: 1 | R65: 9026 | S65: 2075
A66: 9026 | I66: 选择后接新的事件 | P66: =IF(N66="","","-"&VLOOKUP(N66,EventConditionConfig!A:C,3,FALSE)&IF(O66="","",CHAR(10)&"-"&VLOOKUP(O66,EventConditionConfig!A:C,3,FALSE))) ->  | U66: 接受任务 | AA66: 3 | AB66: 9014
P67: =IF(N67="","","-"&VLOOKUP(N67,EventConditionConfig!A:C,3,FALSE)&IF(O67="","",CHAR(10)&"-"&VLOOKUP(O67,EventConditionConfig!A:C,3,FALSE))) -> 
P68: =IF(N68="","","-"&VLOOKUP(N68,EventConditionConfig!A:C,3,FALSE)&IF(O68="","",CHAR(10)&"-"&VLOOKUP(O68,EventConditionConfig!A:C,3,FALSE))) -> 
A69: 9014 | B69: 2070 | E69: 击杀魔休 | M69: 3 | N69: 3 | P69: =IF(N69="","","-"&VLOOKUP(N69,EventConditionConfig!A:C,3,FALSE)&IF(O69="","",CHAR(10)&"-"&VLOOKUP(O69,EventConditionConfig!A:C,3,FALSE))) -> -击杀魔休
M70: =_xlfn.TEXTJOIN(";",1,N70:O70) ->  | P70: =IF(N70="","","-"&VLOOKUP(N70,EventConditionConfig!A:C,3,FALSE)&IF(O70="","",CHAR(10)&"-"&VLOOKUP(O70,EventConditionConfig!A:C,3,FALSE))) -> 
P71: =IF(N71="","","-"&VLOOKUP(N71,EventConditionConfig!A:C,3,FALSE)&IF(O71="","",CHAR(10)&"-"&VLOOKUP(O71,EventConditionConfig!A:C,3,FALSE))) -> 
A72: 9031 | B72: 2076 | C72: 出现Boss魔修 | D72: 2077 | E72: 打败魔修 | P72: =IF(N72="","","-"&VLOOKUP(N72,EventConditionConfig!A:C,3,FALSE)&IF(O72="","",CHAR(10)&"-"&VLOOKUP(O72,EventConditionConfig!A:C,3,FALSE))) ->  | Q72: 2 | R72: 100001
P73: =IF(N73="","","-"&VLOOKUP(N73,EventConditionConfig!A:C,3,FALSE)&IF(O73="","",CHAR(10)&"-"&VLOOKUP(O73,EventConditionConfig!A:C,3,FALSE))) -> 
A74: =K74*100+L74 -> 1000101 | B74: 2086 | C74: 使用风铃唤醒还未泯灭的神识 | H74: 2083 | I74: 北冥有鱼，其名为鲲…… | J74: 2 | K74: 10001 | L74: =IF(K74=K73,L73+1,1) -> 1 | P74: =IF(N74="","","-"&VLOOKUP(N74,EventConditionConfig!A:C,3,FALSE)&IF(O74="","",CHAR(10)&"-"&VLOOKUP(O74,EventConditionConfig!A:C,3,FALSE))) ->  | AA74: =IF(A74="","",IF(Q74=1,"",IF(A75="",3,1))) -> 1 | AB74: =IF(AA74=1,A75,IF(AA74=3,LEFT(A74,5)+1,"")) -> 1000102
A75: =K75*100+L75 -> 1000102 | B75: 2086 | C75: 使用风铃唤醒还未泯灭的神识 | H75: 2084 | I75: 不过北海遥远，何时能寻得鲲鹏的踪迹。 | J75: 2 | K75: 10001 | L75: =IF(K75=K74,L74+1,1) -> 2 | P75: =IF(N75="","","-"&VLOOKUP(N75,EventConditionConfig!A:C,3,FALSE)&IF(O75="","",CHAR(10)&"-"&VLOOKUP(O75,EventConditionConfig!A:C,3,FALSE))) ->  | AA75: =IF(A75="","",IF(Q75=1,"",IF(A76="",3,1))) -> 1 | AB75: =IF(AA75=1,A76,IF(AA75=3,LEFT(A75,5)+1,"")) -> 1000103
A76: =K76*100+L76 -> 1000103 | B76: 2086 | C76: 使用风铃唤醒还未泯灭的神识 | H76: 2085 | I76: 好在我的神识尚在，可探天地，再加上刚刚的风铃，或许能寻得前路线索。 | J76: 2 | K76: 10001 | L76: 3 | P76: =IF(N76="","","-"&VLOOKUP(N76,EventConditionConfig!A:C,3,FALSE)&IF(O76="","",CHAR(10)&"-"&VLOOKUP(O76,EventConditionConfig!A:C,3,FALSE))) ->  | AA76: 1 | AB76: 1000104
A77: =K77*100+L77 -> 1000104 | B77: 2086 | C77: 使用风铃唤醒还未泯灭的神识 | K77: 10001 | L77: 4 | M77: 5 | N77: 5 | P77: =IF(N77="","","-"&VLOOKUP(N77,EventConditionConfig!A:C,3,FALSE)&IF(O77="","",CHAR(10)&"-"&VLOOKUP(O77,EventConditionConfig!A:C,3,FALSE))) -> -使用神识 | AA77: 3 | AB77: 10002
P78: =IF(N78="","","-"&VLOOKUP(N78,EventConditionConfig!A:C,3,FALSE)&IF(O78="","",CHAR(10)&"-"&VLOOKUP(O78,EventConditionConfig!A:C,3,FALSE))) -> 
A79: =K79*100+L79 -> 1000201 | B79: 2091 | C79: 前往妖兽盘踞的地方 | H79: 2092 | I79: 神识发现有一条古径，隐于云山之间，不过似乎有妖兽盘踞。 | J79: 3 | K79: 10002 | L79: 1 | P79: =IF(N79="","","-"&VLOOKUP(N79,EventConditionConfig!A:C,3,FALSE)&IF(O79="","",CHAR(10)&"-"&VLOOKUP(O79,EventConditionConfig!A:C,3,FALSE))) ->  | AA79: 1 | AB79: =IF(AA79=1,A80,IF(AA79=3,LEFT(A79,5)+1,"")) -> 1000202
A80: =K80*100+L80 -> 1000202 | B80: 2091 | C80: 前往妖兽盘踞的地方 | H80: 2093 | I80: 没其他办法了，过去看看吧。 | J80: 3 | K80: 10002 | L80: 2 | P80: =IF(N80="","","-"&VLOOKUP(N80,EventConditionConfig!A:C,3,FALSE)&IF(O80="","",CHAR(10)&"-"&VLOOKUP(O80,EventConditionConfig!A:C,3,FALSE))) ->  | AA80: 1 | AB80: 1000203
A81: =K81*100+L81 -> 1000203 | B81: 2091 | C81: 前往妖兽盘踞的地方 | D81: 2094 | E81: 继续飞行一段时间 | K81: 10002 | L81: 3 | P81: =IF(N81="","","-"&VLOOKUP(N81,EventConditionConfig!A:C,3,FALSE)&IF(O81="","",CHAR(10)&"-"&VLOOKUP(O81,EventConditionConfig!A:C,3,FALSE))) ->  | AA81: 3 | AB81: 10003
P82: =IF(N82="","","-"&VLOOKUP(N82,EventConditionConfig!A:C,3,FALSE)&IF(O82="","",CHAR(10)&"-"&VLOOKUP(O82,EventConditionConfig!A:C,3,FALSE))) -> 
A83: 1000301 | B83: 2095 | C83: 蜩鸟和小麻雀对你的到来很好奇 | G83: =IF(F83="","",VLOOKUP(F83,EventNPC!A:E,5,FALSE)) ->  | H83: 2096 | I83: 应该就是这里了，似乎有古老的阵法挡住了去路 | K83: 10003 | L83: 1 | P83: =IF(N83="","","-"&VLOOKUP(N83,EventConditionConfig!A:C,3,FALSE)&IF(O83="","",CHAR(10)&"-"&VLOOKUP(O83,EventConditionConfig!A:C,3,FALSE))) ->  | AA83: 1 | AB83: 1000302
A84: =K84*100+L84 -> 1000302 | B84: 2095 | C84: 蜩鸟和小麻雀对你的到来很好奇 | G84: =IF(F84="","",VLOOKUP(F84,EventNPC!A:E,5,FALSE)) ->  | H84: 2097 | I84: （结界门前，三只小鸟飞来，落在一旁古松上） | K84: 10003 | L84: 2 | P84: =IF(N84="","","-"&VLOOKUP(N84,EventConditionConfig!A:C,3,FALSE)&IF(O84="","",CHAR(10)&"-"&VLOOKUP(O84,EventConditionConfig!A:C,3,FALSE))) ->  | AA84: 1 | AB84: 1000303
A85: =K85*100+L85 -> 1000303 | B85: 2095 | C85: 蜩鸟和小麻雀对你的到来很好奇 | F85: 101 | G85: =IF(F85="","",VLOOKUP(F85,EventNPC!A:E,5,FALSE)) -> 蜩鸟 | H85: 2098 | I85: （拍翅）：“咦？又是妄图穿行北海之人？” | K85: 10003 | L85: =IF(K85=K84,L84+1,1) -> 3 | P85: =IF(N85="","","-"&VLOOKUP(N85,EventConditionConfig!A:C,3,FALSE)&IF(O85="","",CHAR(10)&"-"&VLOOKUP(O85,EventConditionConfig!A:C,3,FALSE))) ->  | Q85: 1 | R85: =A86 -> 1000304 | S85: =_xlfn.TEXTJOIN(";",1,T85,V85) -> 2099 | T85: 2099 | U85: 我在寻找鲲鹏，你们知道它在哪里吗？
A86: =K86*100+L86 -> 1000304 | B86: 2095 | C86: 蜩鸟和小麻雀对你的到来很好奇 | F86: 102 | G86: =IF(F86="","",VLOOKUP(F86,EventNPC!A:E,5,FALSE)) -> 小麻雀 | H86: 2100 | I86: （扑棱翅膀）是想要从北海飞往南海的超级大鸟吧？ | K86: 10003 | L86: =IF(K86=K85,L85+1,1) -> 4 | P86: =IF(N86="","","-"&VLOOKUP(N86,EventConditionConfig!A:C,3,FALSE)&IF(O86="","",CHAR(10)&"-"&VLOOKUP(O86,EventConditionConfig!A:C,3,FALSE))) ->  | AA86: 1 | AB86: 1000305
A87: =K87*100+L87 -> 1000305 | B87: 2095 | C87: 蜩鸟和小麻雀对你的到来很好奇 | F87: 102 | G87: =IF(F87="","",VLOOKUP(F87,EventNPC!A:E,5,FALSE)) -> 小麻雀 | H87: 2101 | I87: 我就想不明白，她为何要飞如此之远，太奇怪啦！ | K87: 10003 | L87: =IF(K87=K86,L86+1,1) -> 5 | P87: =IF(N87="","","-"&VLOOKUP(N87,EventConditionConfig!A:C,3,FALSE)&IF(O87="","",CHAR(10)&"-"&VLOOKUP(O87,EventConditionConfig!A:C,3,FALSE))) ->  | Q87: 1 | R87: =A88 -> 1000306 | S87: 2102 | T87: 2102 | U87: 鲲鹏是在追求心中的目标吧。
A88: =K88*100+L88 -> 1000306 | B88: 2095 | C88: 蜩鸟和小麻雀对你的到来很好奇 | F88: 102 | G88: =IF(F88="","",VLOOKUP(F88,EventNPC!A:E,5,FALSE)) -> 小麻雀 | H88: 2103 | I88: （偏头想了想）目标？我天天在这里上蹿下跳，在附近树林飞来飞去，就已经很幸福啦。 | K88: 10003 | L88: =IF(K88=K87,L87+1,1) -> 6 | P88: =IF(N88="","","-"&VLOOKUP(N88,EventConditionConfig!A:C,3,FALSE)&IF(O88="","",CHAR(10)&"-"&VLOOKUP(O88,EventConditionConfig!A:C,3,FALSE))) ->  | AA88: 1 | AB88: 1000307
A89: =K89*100+L89 -> 1000307 | B89: 2095 | C89: 蜩鸟和小麻雀对你的到来很好奇 | F89: 102 | G89: =IF(F89="","",VLOOKUP(F89,EventNPC!A:E,5,FALSE)) -> 小麻雀 | H89: 2104 | I89: 就那大傻鸟，非要飞那么远，又笨又蠢...真没意思。 | K89: 10003 | L89: =IF(K89=K88,L88+1,1) -> 7 | P89: =IF(N89="","","-"&VLOOKUP(N89,EventConditionConfig!A:C,3,FALSE)&IF(O89="","",CHAR(10)&"-"&VLOOKUP(O89,EventConditionConfig!A:C,3,FALSE))) ->  | Q89: 1 | R89: =A90 -> 1000308 | S89: 2105;2106 | T89: 2105 | U89: 你说得也有一定道理… | V89: 2106 | W89: 你懂什么..这大鹏鸟可比你更有志向多了。
A90: =K90*100+L90 -> 1000308 | B90: 2095 | C90: 蜩鸟和小麻雀对你的到来很好奇 | F90: 101 | G90: =IF(F90="","",VLOOKUP(F90,EventNPC!A:E,5,FALSE)) -> 蜩鸟 | H90: 2107 | I90: （翻飞一圈）志向有什么用？到头来还不是风停了就落地。 | K90: 10003 | L90: =IF(K90=K89,L89+1,1) -> 8 | P90: =IF(N90="","","-"&VLOOKUP(N90,EventConditionConfig!A:C,3,FALSE)&IF(O90="","",CHAR(10)&"-"&VLOOKUP(O90,EventConditionConfig!A:C,3,FALSE))) ->  | Q90: 1 | R90: =A91 -> 1000309 | S90: 2108 | T90: 2108 | U90: ......
A91: =K91*100+L91 -> 1000309 | B91: 2095 | C91: 蜩鸟和小麻雀对你的到来很好奇 | G91: =IF(F91="","",VLOOKUP(F91,EventNPC!A:E,5,FALSE)) ->  | H91: 2109 | I91: （此时，结界微动，一缕风穿林而过，古径阵法竟有一丝松动） | K91: 10003 | L91: =IF(K91=K90,L90+1,1) -> 9 | P91: =IF(N91="","","-"&VLOOKUP(N91,EventConditionConfig!A:C,3,FALSE)&IF(O91="","",CHAR(10)&"-"&VLOOKUP(O91,EventConditionConfig!A:C,3,FALSE))) ->  | AA91: 3 | AB91: 10004
P92: =IF(N92="","","-"&VLOOKUP(N92,EventConditionConfig!A:C,3,FALSE)&IF(O92="","",CHAR(10)&"-"&VLOOKUP(O92,EventConditionConfig!A:C,3,FALSE))) -> 
A93: =K93*100+L93 -> 1000401 | B93: 2110 | C93: 原来它们就是镇守阵法的结界兽 | D93: 2115 | E93: 击败结界兽 | F93: 101 | G93: =IF(F93="","",VLOOKUP(F93,EventNPC!A:E,5,FALSE)) -> 蜩鸟 | H93: 2111 | I93: 这结界似乎有所反应… | K93: 10004 | L93: =IF(K93=K92,L92+1,1) -> 1 | P93: =IF(N93="","","-"&VLOOKUP(N93,EventConditionConfig!A:C,3,FALSE)&IF(O93="","",CHAR(10)&"-"&VLOOKUP(O93,EventConditionConfig!A:C,3,FALSE))) ->  | Q93: 1 | R93: =A94 -> 1000402 | S93: =_xlfn.TEXTJOIN(";",1,T93,V93) -> 2112 | T93: 2112 | U93: 与你们聊天很有意思，不过今天我是非过去不可，没人能阻止我重返仙途！
A94: =K94*100+L94 -> 1000402 | B94: 2110 | C94: 原来它们就是镇守阵法的结界兽 | D94: 2115 | E94: 击败结界兽 | F94: 102 | G94: =IF(F94="","",VLOOKUP(F94,EventNPC!A:E,5,FALSE)) -> 小麻雀 | H94: 2113 | I94: "小鸟.."现身吧！ | K94: 10004 | L94: =IF(K94=K93,L93+1,1) -> 2 | P94: =IF(N94="","","-"&VLOOKUP(N94,EventConditionConfig!A:C,3,FALSE)&IF(O94="","",CHAR(10)&"-"&VLOOKUP(O94,EventConditionConfig!A:C,3,FALSE))) ->  | S94: =_xlfn.TEXTJOIN(";",1,T94,V94) ->  | AA94: =IF(A94="","",IF(Q94=1,"",IF(A95="",3,1))) -> 1 | AB94: =IF(AA94=1,A95,IF(AA94=3,LEFT(A94,5)+1,"")) -> 1000403
A95: =K95*100+L95 -> 1000403 | B95: 2110 | C95: 原来它们就是镇守阵法的结界兽 | D95: 2115 | E95: 击败结界兽 | F95: 101 | G95: =IF(F95="","",VLOOKUP(F95,EventNPC!A:E,5,FALSE)) -> 蜩鸟 | H95: 2114 | I95: （轻轻飞下来..）又来...来吧来吧.. | K95: 10004 | L95: =IF(K95=K94,L94+1,1) -> 3 | P95: =IF(N95="","","-"&VLOOKUP(N95,EventConditionConfig!A:C,3,FALSE)&IF(O95="","",CHAR(10)&"-"&VLOOKUP(O95,EventConditionConfig!A:C,3,FALSE))) ->  | Q95: 2 | R95: 100001 | S95: =_xlfn.TEXTJOIN(";",1,T95,V95) ->  | AA95: 2 | AB95: 1000404;101
A96: =K96*100+L96 -> 1000404 | B96: 2110 | C96: 原来它们就是镇守阵法的结界兽 | F96: 102 | G96: =IF(F96="","",VLOOKUP(F96,EventNPC!A:E,5,FALSE)) -> 小麻雀 | H96: 2115 | I96: 怎么想过去，就去吧.. | K96: 10004 | L96: =IF(K96=K95,L95+1,1) -> 4 | P96: =IF(N96="","","-"&VLOOKUP(N96,EventConditionConfig!A:C,3,FALSE)&IF(O96="","",CHAR(10)&"-"&VLOOKUP(O96,EventConditionConfig!A:C,3,FALSE))) ->  | S96: =_xlfn.TEXTJOIN(";",1,T96,V96) ->  | AA96: =IF(A96="","",IF(Q96=1,"",IF(A97="",3,1))) -> 3 | AB96: =IF(AA96=1,A97,IF(AA96=3,LEFT(A96,5)+1,"")) -> 10005
P97: =IF(N97="","","-"&VLOOKUP(N97,EventConditionConfig!A:C,3,FALSE)&IF(O97="","",CHAR(10)&"-"&VLOOKUP(O97,EventConditionConfig!A:C,3,FALSE))) -> 
A98: =K98*100+L98 -> 1000501 | B98: 2151 | C98: 初见疯道人 | G98: =IF(F98="","",VLOOKUP(F98,EventNPC!A:E,5,FALSE)) ->  | H98: 2116 | I98: 你穿过古径结界，来到一片被风托起的浮空灵岛群。 | K98: 10005 | L98: =IF(K98=K97,L97+1,1) -> 1 | P98: =IF(N98="","","-"&VLOOKUP(N98,EventConditionConfig!A:C,3,FALSE)&IF(O98="","",CHAR(10)&"-"&VLOOKUP(O98,EventConditionConfig!A:C,3,FALSE))) ->  | S98: =_xlfn.TEXTJOIN(";",1,T98,V98) ->  | AA98: =IF(A98="","",IF(Q98=1,"",IF(A99="",3,1))) -> 1 | AB98: =IF(AA98=1,A99,IF(AA98=3,LEFT(A98,5)+1,"")) -> 1000502
A99: =K99*100+L99 -> 1000502 | B99: 2151 | C99: 初见疯道人 | G99: =IF(F99="","",VLOOKUP(F99,EventNPC!A:E,5,FALSE)) ->  | H99: 2117 | I99: 风势强劲，岛与岛之间缝隙深不见底，无桥无梯。 | K99: 10005 | L99: =IF(K99=K98,L98+1,1) -> 2 | P99: =IF(N99="","","-"&VLOOKUP(N99,EventConditionConfig!A:C,3,FALSE)&IF(O99="","",CHAR(10)&"-"&VLOOKUP(O99,EventConditionConfig!A:C,3,FALSE))) ->  | S99: =_xlfn.TEXTJOIN(";",1,T99,V99) ->  | AA99: =IF(A99="","",IF(Q99=1,"",IF(A100="",3,1))) -> 1 | AB99: =IF(AA99=1,A100,IF(AA99=3,LEFT(A99,5)+1,"")) -> 1000503
A100: =K100*100+L100 -> 1000503 | B100: 2151 | C100: 初见疯道人 | G100: =IF(F100="","",VLOOKUP(F100,EventNPC!A:E,5,FALSE)) ->  | H100: 2118 | I100: 此处盘踞一位神秘道人，常独自站在岛边望风，仿佛等待什么。 | K100: 10005 | L100: =IF(K100=K99,L99+1,1) -> 3 | P100: =IF(N100="","","-"&VLOOKUP(N100,EventConditionConfig!A:C,3,FALSE)&IF(O100="","",CHAR(10)&"-"&VLOOKUP(O100,EventConditionConfig!A:C,3,FALSE))) ->  | S100: =_xlfn.TEXTJOIN(";",1,T100,V100) ->  | AA100: =IF(A100="","",IF(Q100=1,"",IF(A101="",3,1))) -> 1 | AB100: =IF(AA100=1,A101,IF(AA100=3,LEFT(A100,5)+1,"")) -> 1000504
A101: =K101*100+L101 -> 1000504 | B101: 2151 | C101: 初见疯道人 | G101: =IF(F101="","",VLOOKUP(F101,EventNPC!A:E,5,FALSE)) ->  | H101: 2119 | I101: （你尝试御剑，却在风中打转，被吹回原地） | K101: 10005 | L101: =IF(K101=K100,L100+1,1) -> 4 | P101: =IF(N101="","","-"&VLOOKUP(N101,EventConditionConfig!A:C,3,FALSE)&IF(O101="","",CHAR(10)&"-"&VLOOKUP(O101,EventConditionConfig!A:C,3,FALSE))) ->  | Q101: 1 | R101: =A102 -> 1000505 | S101: =_xlfn.TEXTJOIN(";",1,T101,V101) -> 2120 | T101: 2120 | U101: 前辈，这里的风太大，我无法飞行，请教如何才能通过？ | AA101: =IF(A101="","",IF(Q101=1,"",IF(A102="",3,1))) ->  | AB101: =IF(AA101=1,A102,IF(AA101=3,LEFT(A101,5)+1,"")) -> 
A102: 1000505 | B102: 2151 | C102: 初见疯道人 | F102: 103 | G102: =IF(F102="","",VLOOKUP(F102,EventNPC!A:E,5,FALSE)) -> 疯道人 | H102: 2121 | I102: ...... | K102: 10005 | L102: 5 | P102: =IF(N102="","","-"&VLOOKUP(N102,EventConditionConfig!A:C,3,FALSE)&IF(O102="","",CHAR(10)&"-"&VLOOKUP(O102,EventConditionConfig!A:C,3,FALSE))) ->  | Q102: 1 | R102: =A103 -> 1000506 | S102: =_xlfn.TEXTJOIN(";",1,T102,V102) -> 2122 | T102: 2122 | U102: 前辈，我准备前往北海深处，寻鲲鹏。
A103: 1000506 | B103: 2151 | C103: 初见疯道人 | F103: 103 | G103: =IF(F103="","",VLOOKUP(F103,EventNPC!A:E,5,FALSE)) -> 疯道人 | H103: 2123 | I103: 鲲鹏？……世间竟还有人记得它。 | K103: 10005 | L103: 6 | P103: =IF(N103="","","-"&VLOOKUP(N103,EventConditionConfig!A:C,3,FALSE)&IF(O103="","",CHAR(10)&"-"&VLOOKUP(O103,EventConditionConfig!A:C,3,FALSE))) ->  | S103: =_xlfn.TEXTJOIN(";",1,T103,V103) ->  | AA103: 1 | AB103: 1000507
A104: =K104*100+L104 -> 1000507 | B104: 2151 | C104: 初见疯道人 | F104: 103 | G104: =IF(F104="","",VLOOKUP(F104,EventNPC!A:E,5,FALSE)) -> 疯道人 | H104: 2124 | I104: （说着从手中掏出一个碎片，往空中一震，瞬间风停）过来吧。 | K104: 10005 | L104: =IF(K104=K103,L103+1,1) -> 7 | P104: =IF(N104="","","-"&VLOOKUP(N104,EventConditionConfig!A:C,3,FALSE)&IF(O104="","",CHAR(10)&"-"&VLOOKUP(O104,EventConditionConfig!A:C,3,FALSE))) ->  | S104: =_xlfn.TEXTJOIN(";",1,T104,V104) ->  | AA104: =IF(A104="","",IF(Q104=1,"",IF(A105="",3,1))) -> 1 | AB104: =IF(AA104=1,A105,IF(AA104=3,LEFT(A104,5)+1,"")) -> 1000508
A105: =K105*100+L105 -> 1000508 | B105: 2151 | C105: 初见疯道人 | F105: 103 | G105: =IF(F105="","",VLOOKUP(F105,EventNPC!A:E,5,FALSE)) -> 疯道人 | H105: 2125 | I105: 说吧，为何寻那鲲鹏？ | K105: 10005 | L105: =IF(K105=K104,L104+1,1) -> 8 | P105: =IF(N105="","","-"&VLOOKUP(N105,EventConditionConfig!A:C,3,FALSE)&IF(O105="","",CHAR(10)&"-"&VLOOKUP(O105,EventConditionConfig!A:C,3,FALSE))) ->  | Q105: 1 | R105: =A106 -> 1000509 | S105: =_xlfn.TEXTJOIN(";",1,T105,V105) -> 2126;2127 | T105: 2126 | U105: 冲虚真人让我去的 | V105: 2127 | W105: 我只是好奇.. | AA105: =IF(A105="","",IF(Q105=1,"",IF(A106="",3,1))) ->  | AB105: =IF(AA105=1,A106,IF(AA105=3,LEFT(A105,5)+1,"")) -> 
A106: 1000509 | B106: 2151 | C106: 初见疯道人 | F106: 103 | G106: =IF(F106="","",VLOOKUP(F106,EventNPC!A:E,5,FALSE)) -> 疯道人 | H106: 2128 | I106: 你可知鹏飞九万里，需凭借龙卷风，才可达成？ | K106: 10005 | L106: 9 | P106: =IF(N106="","","-"&VLOOKUP(N106,EventConditionConfig!A:C,3,FALSE)&IF(O106="","",CHAR(10)&"-"&VLOOKUP(O106,EventConditionConfig!A:C,3,FALSE))) ->  | Q106: 1 | R106: =A107 -> 1000510 | S106: =_xlfn.TEXTJOIN(";",1,T106,V106) -> 2129 | T106: 2129 | U106: 请前辈赐教......
A107: 1000510 | B107: 2151 | C107: 初见疯道人 | F107: 103 | G107: =IF(F107="","",VLOOKUP(F107,EventNPC!A:E,5,FALSE)) -> 疯道人 | H107: 2130 | I107: 看你修为尚浅，跟你说多了也无用。 | K107: 10005 | L107: 10 | P107: =IF(N107="","","-"&VLOOKUP(N107,EventConditionConfig!A:C,3,FALSE)&IF(O107="","",CHAR(10)&"-"&VLOOKUP(O107,EventConditionConfig!A:C,3,FALSE))) ->  | S107: =_xlfn.TEXTJOIN(";",1,T107,V107) ->  | AA107: 1 | AB107: 1000511
A108: =K108*100+L108 -> 1000511 | B108: 2151 | C108: 初见疯道人 | F108: 103 | G108: =IF(F108="","",VLOOKUP(F108,EventNPC!A:E,5,FALSE)) -> 疯道人 | H108: 2131 | I108: 再往前是我师弟的洞府了，他可不好说话。 | K108: 10005 | L108: =IF(K108=K107,L107+1,1) -> 11 | P108: =IF(N108="","","-"&VLOOKUP(N108,EventConditionConfig!A:C,3,FALSE)&IF(O108="","",CHAR(10)&"-"&VLOOKUP(O108,EventConditionConfig!A:C,3,FALSE))) ->  | S108: =_xlfn.TEXTJOIN(";",1,T108,V108) ->  | AA108: =IF(A108="","",IF(Q108=1,"",IF(A109="",3,1))) -> 1 | AB108: =IF(AA108=1,A109,IF(AA108=3,LEFT(A108,5)+1,"")) -> 1000512
A109: =K109*100+L109 -> 1000512 | B109: 2151 | C109: 初见疯道人 | F109: 103 | G109: =IF(F109="","",VLOOKUP(F109,EventNPC!A:E,5,FALSE)) -> 疯道人 | H109: 2132 | I109: 就在我这附近好好修炼吧，至少提升至筑基修为。 | K109: 10005 | L109: =IF(K109=K108,L108+1,1) -> 12 | P109: =IF(N109="","","-"&VLOOKUP(N109,EventConditionConfig!A:C,3,FALSE)&IF(O109="","",CHAR(10)&"-"&VLOOKUP(O109,EventConditionConfig!A:C,3,FALSE))) ->  | Q109: 1 | R109: =A110 -> 1000513 | S109: =_xlfn.TEXTJOIN(";",1,T109,V109) -> 2133 | T109: 2133 | U109: 前辈为何如此助我？ | AA109: =IF(A109="","",IF(Q109=1,"",IF(A110="",3,1))) ->  | AB109: =IF(AA109=1,A110,IF(AA109=3,LEFT(A109,5)+1,"")) -> 
A110: 1000513 | B110: 2151 | C110: 初见疯道人 | F110: 103 | G110: =IF(F110="","",VLOOKUP(F110,EventNPC!A:E,5,FALSE)) -> 疯道人 | H110: 2134 | I110: （疯道人望你一眼，没有回答，但丢过来一本功法）修到[筑基-中期]再来找我。 | K110: 10005 | L110: 13 | P110: =IF(N110="","","-"&VLOOKUP(N110,EventConditionConfig!A:C,3,FALSE)&IF(O110="","",CHAR(10)&"-"&VLOOKUP(O110,EventConditionConfig!A:C,3,FALSE))) ->  | S110: =_xlfn.TEXTJOIN(";",1,T110,V110) ->  | AA110: 1 | AB110: 1000514
A111: =K111*100+L111 -> 1000514 | B111: 2151 | C111: 初见疯道人 | G111: =IF(F111="","",VLOOKUP(F111,EventNPC!A:E,5,FALSE)) ->  | K111: 10005 | L111: =IF(K111=K110,L110+1,1) -> 14 | M111: 2 | N111: 2 | P111: =IF(N111="","","-"&VLOOKUP(N111,EventConditionConfig!A:C,3,FALSE)&IF(O111="","",CHAR(10)&"-"&VLOOKUP(O111,EventConditionConfig!A:C,3,FALSE))) -> -达到境界：筑基-中期 | S111: =_xlfn.TEXTJOIN(";",1,T111,V111) ->  | AA111: =IF(A111="","",IF(Q111=1,"",IF(A112="",3,1))) -> 3 | AB111: =IF(AA111=1,A112,IF(AA111=3,LEFT(A111,5)+1,"")) -> 10006
P112: =IF(N112="","","-"&VLOOKUP(N112,EventConditionConfig!A:C,3,FALSE)&IF(O112="","",CHAR(10)&"-"&VLOOKUP(O112,EventConditionConfig!A:C,3,FALSE))) -> 
A113: =K113*100+L113 -> 1000601 | B113: 2152 | C113: 疯道人赠与一半风灵珠 | F113: 103 | G113: =IF(F113="","",VLOOKUP(F113,EventNPC!A:E,5,FALSE)) -> 疯道人 | H113: 2139 | I113: 你已突破筑基前期达到中期，灵力通畅，是时候去会一会我的师弟了。 | K113: 10006 | L113: =IF(K113=K112,L112+1,1) -> 1 | P113: =IF(N113="","","-"&VLOOKUP(N113,EventConditionConfig!A:C,3,FALSE)&IF(O113="","",CHAR(10)&"-"&VLOOKUP(O113,EventConditionConfig!A:C,3,FALSE))) ->  | Q113: 1 | R113: 100603;100602 | S113: =_xlfn.TEXTJOIN(";",1,T113,V113) -> 2140;2141 | T113: 2140 | U113: 是的。鲲鹏之行，志在必达。 | V113: 2141 | W113: 看看风的尽头到底有什么。 | AA113: =IF(A113="","",IF(Q113=1,"",IF(A114="",3,1))) ->  | AB113: =IF(AA113=1,A114,IF(AA113=3,LEFT(A113,5)+1,"")) -> 
A114: =K114*100+L114 -> 1000602 | B114: 2152 | C114: 疯道人赠与一半风灵珠 | F114: 103 | G114: =IF(F114="","",VLOOKUP(F114,EventNPC!A:E,5,FALSE)) -> 疯道人 | H114: 2142 | I114: （轻轻一笑）你说风的尽头……我也曾想看。 （他望向远处翻涌的云海） | K114: 10006 | L114: =IF(K114=K113,L113+1,1) -> 2 | P114: =IF(N114="","","-"&VLOOKUP(N114,EventConditionConfig!A:C,3,FALSE)&IF(O114="","",CHAR(10)&"-"&VLOOKUP(O114,EventConditionConfig!A:C,3,FALSE))) ->  | Q114: 1 | R114: =A115 -> 1000603 | S114: =_xlfn.TEXTJOIN(";",1,T114,V114) ->  | AA114: =IF(A114="","",IF(Q114=1,"",IF(A115="",3,1))) ->  | AB114: =IF(AA114=1,A115,IF(AA114=3,LEFT(A114,5)+1,"")) -> 
A115: =K115*100+L115 -> 1000603 | B115: 2152 | C115: 疯道人赠与一半风灵珠 | F115: 103 | G115: =IF(F115="","",VLOOKUP(F115,EventNPC!A:E,5,FALSE)) -> 疯道人 | H115: 2143 | I115: 我和师弟，共守这处风眼多年。我想出去，他却偏要留。 | K115: 10006 | L115: =IF(K115=K114,L114+1,1) -> 3 | P115: =IF(N115="","","-"&VLOOKUP(N115,EventConditionConfig!A:C,3,FALSE)&IF(O115="","",CHAR(10)&"-"&VLOOKUP(O115,EventConditionConfig!A:C,3,FALSE))) ->  | S115: =_xlfn.TEXTJOIN(";",1,T115,V115) ->  | AA115: =IF(A115="","",IF(Q115=1,"",IF(A116="",3,1))) -> 1 | AB115: =IF(AA115=1,A116,IF(AA115=3,LEFT(A115,5)+1,"")) -> 1000604
A116: =K116*100+L116 -> 1000604 | B116: 2152 | C116: 疯道人赠与一半风灵珠 | F116: 103 | G116: =IF(F116="","",VLOOKUP(F116,EventNPC!A:E,5,FALSE)) -> 疯道人 | H116: 2144 | I116: 风灵珠碎成两半，一半在我这里，另一半……在他洞府中。 | K116: 10006 | L116: =IF(K116=K115,L115+1,1) -> 4 | P116: =IF(N116="","","-"&VLOOKUP(N116,EventConditionConfig!A:C,3,FALSE)&IF(O116="","",CHAR(10)&"-"&VLOOKUP(O116,EventConditionConfig!A:C,3,FALSE))) ->  | S116: =_xlfn.TEXTJOIN(";",1,T116,V116) ->  | AA116: =IF(A116="","",IF(Q116=1,"",IF(A117="",3,1))) -> 1 | AB116: =IF(AA116=1,A117,IF(AA116=3,LEFT(A116,5)+1,"")) -> 1000605
A117: =K117*100+L117 -> 1000605 | B117: 2152 | C117: 疯道人赠与一半风灵珠 | F117: 103 | G117: =IF(F117="","",VLOOKUP(F117,EventNPC!A:E,5,FALSE)) -> 疯道人 | H117: 2145 | I117: 你若想见鲲鹏，必须要集齐整个风灵珠。 | K117: 10006 | L117: =IF(K117=K116,L116+1,1) -> 5 | P117: =IF(N117="","","-"&VLOOKUP(N117,EventConditionConfig!A:C,3,FALSE)&IF(O117="","",CHAR(10)&"-"&VLOOKUP(O117,EventConditionConfig!A:C,3,FALSE))) ->  | S117: =_xlfn.TEXTJOIN(";",1,T117,V117) ->  | AA117: =IF(A117="","",IF(Q117=1,"",IF(A118="",3,1))) -> 1 | AB117: =IF(AA117=1,A118,IF(AA117=3,LEFT(A117,5)+1,"")) -> 1000606
A118: =K118*100+L118 -> 1000606 | B118: 2152 | C118: 疯道人赠与一半风灵珠 | F118: 103 | G118: =IF(F118="","",VLOOKUP(F118,EventNPC!A:E,5,FALSE)) -> 疯道人 | H118: 2146 | I118: 我这一半给你，可助你在大风中，来去自如。 | K118: 10006 | L118: =IF(K118=K117,L117+1,1) -> 6 | P118: =IF(N118="","","-"&VLOOKUP(N118,EventConditionConfig!A:C,3,FALSE)&IF(O118="","",CHAR(10)&"-"&VLOOKUP(O118,EventConditionConfig!A:C,3,FALSE))) ->  | S118: =_xlfn.TEXTJOIN(";",1,T118,V118) ->  | AA118: =IF(A118="","",IF(Q118=1,"",IF(A119="",3,1))) -> 3 | AB118: =IF(AA118=1,A119,IF(AA118=3,LEFT(A118,5)+1,"")) -> 10007
P119: =IF(N119="","","-"&VLOOKUP(N119,EventConditionConfig!A:C,3,FALSE)&IF(O119="","",CHAR(10)&"-"&VLOOKUP(O119,EventConditionConfig!A:C,3,FALSE))) -> 
A120: =K120*100+L120 -> 1000701 | B120: 2153 | C120: 没想到痴道人一来就要与你交手 | G120: =IF(F120="","",VLOOKUP(F120,EventNPC!A:E,5,FALSE)) ->  | H120: 2147 | I120: 你获得了疯道人的半颗风灵珠，在狂风中自由飞行，好不自在。 | K120: 10007 | L120: =IF(K120=K119,L119+1,1) -> 1 | P120: =IF(N120="","","-"&VLOOKUP(N120,EventConditionConfig!A:C,3,FALSE)&IF(O120="","",CHAR(10)&"-"&VLOOKUP(O120,EventConditionConfig!A:C,3,FALSE))) ->  | S120: =_xlfn.TEXTJOIN(";",1,T120,V120) ->  | AA120: =IF(A120="","",IF(Q120=1,"",IF(A121="",3,1))) -> 1 | AB120: =IF(AA120=1,A121,IF(AA120=3,LEFT(A120,5)+1,"")) -> 1000702
A121: =K121*100+L121 -> 1000702 | B121: 2153 | C121: 没想到痴道人一来就要与你交手 | G121: =IF(F121="","",VLOOKUP(F121,EventNPC!A:E,5,FALSE)) ->  | H121: 2148 | I121: 这......就是逍遥游吗？ | K121: 10007 | L121: =IF(K121=K120,L120+1,1) -> 2 | P121: =IF(N121="","","-"&VLOOKUP(N121,EventConditionConfig!A:C,3,FALSE)&IF(O121="","",CHAR(10)&"-"&VLOOKUP(O121,EventConditionConfig!A:C,3,FALSE))) ->  | S121: =_xlfn.TEXTJOIN(";",1,T121,V121) ->  | AA121: =IF(A121="","",IF(Q121=1,"",IF(A122="",3,1))) -> 1 | AB121: =IF(AA121=1,A122,IF(AA121=3,LEFT(A121,5)+1,"")) -> 1000703
A122: =K122*100+L122 -> 1000703 | B122: 2153 | C122: 没想到痴道人一来就要与你交手 | F122: 104 | G122: =IF(F122="","",VLOOKUP(F122,EventNPC!A:E,5,FALSE)) -> 痴道人 | H122: 2149 | I122: 你终于来了...... | K122: 10007 | L122: =IF(K122=K121,L121+1,1) -> 3 | P122: =IF(N122="","","-"&VLOOKUP(N122,EventConditionConfig!A:C,3,FALSE)&IF(O122="","",CHAR(10)&"-"&VLOOKUP(O122,EventConditionConfig!A:C,3,FALSE))) ->  | Q122: 1 | R122: =A123 -> 1000704 | S122: =_xlfn.TEXTJOIN(";",1,T122,V122) -> 2150 | T122: 2150 | U122: 你知道我要来？ | AA122: =IF(A122="","",IF(Q122=1,"",IF(A123="",3,1))) ->  | AB122: =IF(AA122=1,A123,IF(AA122=3,LEFT(A122,5)+1,"")) -> 
A123: =K123*100+L123 -> 1000704 | B123: 2153 | C123: 没想到痴道人一来就要与你交手 | F123: 104 | G123: =IF(F123="","",VLOOKUP(F123,EventNPC!A:E,5,FALSE)) -> 痴道人 | H123: 2154 | I123: 多说无益，我早已感应到你身上的半颗风灵珠。必是那疯老头让来的。出手吧！ | K123: 10007 | L123: =IF(K123=K122,L122+1,1) -> 4 | P123: =IF(N123="","","-"&VLOOKUP(N123,EventConditionConfig!A:C,3,FALSE)&IF(O123="","",CHAR(10)&"-"&VLOOKUP(O123,EventConditionConfig!A:C,3,FALSE))) ->  | Q123: 2 | R123: 100004 | S123: =_xlfn.TEXTJOIN(";",1,T123,V123) ->  | AA123: 2 | AB123: 1000705;101
A124: 1000705 | B124: 2153 | C124: 没想到痴道人一来就要与你交手 | F124: 104 | G124: =IF(F124="","",VLOOKUP(F124,EventNPC!A:E,5,FALSE)) -> 痴道人 | H124: 2155 | I124: （被击倒在一边）够了！ | K124: 10007 | L124: 5 | P124: =IF(N124="","","-"&VLOOKUP(N124,EventConditionConfig!A:C,3,FALSE)&IF(O124="","",CHAR(10)&"-"&VLOOKUP(O124,EventConditionConfig!A:C,3,FALSE))) ->  | S124: =_xlfn.TEXTJOIN(";",1,T124,V124) ->  | AA124: =IF(A124="","",IF(Q124=1,"",IF(A125="",3,1))) -> 3 | AB124: =IF(AA124=1,A125,IF(AA124=3,LEFT(A124,5)+1,"")) -> 10008
P125: =IF(N125="","","-"&VLOOKUP(N125,EventConditionConfig!A:C,3,FALSE)&IF(O125="","",CHAR(10)&"-"&VLOOKUP(O125,EventConditionConfig!A:C,3,FALSE))) -> 
A126: =K126*100+L126 -> 1000801 | B126: 2156 | C126: 疯痴相聚 | F126: 104 | G126: =IF(F126="","",VLOOKUP(F126,EventNPC!A:E,5,FALSE)) -> 痴道人 | H126: 2157 | I126: ...... | K126: 10008 | L126: =IF(K126=K125,L125+1,1) -> 1 | P126: =IF(N126="","","-"&VLOOKUP(N126,EventConditionConfig!A:C,3,FALSE)&IF(O126="","",CHAR(10)&"-"&VLOOKUP(O126,EventConditionConfig!A:C,3,FALSE))) ->  | Q126: 1 | R126: =A127 -> 1000802 | S126: =_xlfn.TEXTJOIN(";",1,T126,V126) -> 2158 | T126: 2158 | U126: （你靠近痴道人）你真的想一直留在这里？你师兄说你不肯走。 | AA126: =IF(A126="","",IF(Q126=1,"",IF(A127="",3,1))) ->  | AB126: =IF(AA126=1,A127,IF(AA126=3,LEFT(A126,5)+1,"")) -> 
A127: 1000802 | B127: 2156 | C127: 疯痴相聚 | F127: 104 | G127: =IF(F127="","",VLOOKUP(F127,EventNPC!A:E,5,FALSE)) -> 痴道人 | H127: 2159 | I127: 你修炼的时候，有没有过那种感觉——身边的人都在往前走，只有你还在原地。 | K127: 10008 | L127: 2 | P127: =IF(N127="","","-"&VLOOKUP(N127,EventConditionConfig!A:C,3,FALSE)&IF(O127="","",CHAR(10)&"-"&VLOOKUP(O127,EventConditionConfig!A:C,3,FALSE))) ->  | S127: =_xlfn.TEXTJOIN(";",1,T127,V127) ->  | AA127: 1 | AB127: 1000803
A128: =K128*100+L128 -> 1000803 | B128: 2156 | C128: 疯痴相聚 | F128: 104 | G128: =IF(F128="","",VLOOKUP(F128,EventNPC!A:E,5,FALSE)) -> 痴道人 | H128: 2160 | I128: 我师兄，他悟性极高，一年就能走我三年的路。我不服气，想努力赶上他。 | K128: 10008 | L128: =IF(K128=K127,L127+1,1) -> 3 | P128: =IF(N128="","","-"&VLOOKUP(N128,EventConditionConfig!A:C,3,FALSE)&IF(O128="","",CHAR(10)&"-"&VLOOKUP(O128,EventConditionConfig!A:C,3,FALSE))) ->  | Q128: 1 | R128: =A129 -> 1000804 | S128: =_xlfn.TEXTJOIN(";",1,T128,V128) -> 2161 | T128: 2161 | U128: 然后呢？ | AA128: =IF(A128="","",IF(Q128=1,"",IF(A129="",3,1))) ->  | AB128: =IF(AA128=1,A129,IF(AA128=3,LEFT(A128,5)+1,"")) -> 
A129: =K129*100+L129 -> 1000804 | B129: 2156 | C129: 疯痴相聚 | F129: 104 | G129: =IF(F129="","",VLOOKUP(F129,EventNPC!A:E,5,FALSE)) -> 痴道人 | H129: 2162 | I129: 我一直苦心修炼，可人也困在这儿了……越修炼，越困难，修不动了。 | K129: 10008 | L129: =IF(K129=K128,L128+1,1) -> 4 | P129: =IF(N129="","","-"&VLOOKUP(N129,EventConditionConfig!A:C,3,FALSE)&IF(O129="","",CHAR(10)&"-"&VLOOKUP(O129,EventConditionConfig!A:C,3,FALSE))) ->  | S129: =_xlfn.TEXTJOIN(";",1,T129,V129) ->  | AA129: =IF(A129="","",IF(Q129=1,"",IF(A130="",3,1))) -> 1 | AB129: =IF(AA129=1,A130,IF(AA129=3,LEFT(A129,5)+1,"")) -> 1000805
A130: =K130*100+L130 -> 1000805 | B130: 2156 | C130: 疯痴相聚 | G130: =IF(F130="","",VLOOKUP(F130,EventNPC!A:E,5,FALSE)) ->  | H130: 2163 | I130: [此时，疯道人踏风而至，就在几步之外] | K130: 10008 | L130: =IF(K130=K129,L129+1,1) -> 5 | P130: =IF(N130="","","-"&VLOOKUP(N130,EventConditionConfig!A:C,3,FALSE)&IF(O130="","",CHAR(10)&"-"&VLOOKUP(O130,EventConditionConfig!A:C,3,FALSE))) ->  | S130: =_xlfn.TEXTJOIN(";",1,T130,V130) ->  | AA130: =IF(A130="","",IF(Q130=1,"",IF(A131="",3,1))) -> 1 | AB130: =IF(AA130=1,A131,IF(AA130=3,LEFT(A130,5)+1,"")) -> 1000806
A131: =K131*100+L131 -> 1000806 | B131: 2156 | C131: 疯痴相聚 | F131: 103 | G131: =IF(F131="","",VLOOKUP(F131,EventNPC!A:E,5,FALSE)) -> 疯道人 | H131: 2164 | I131: 师弟，你修着修着，就不记得一开始，是为了什么而修行。 | K131: 10008 | L131: =IF(K131=K130,L130+1,1) -> 6 | P131: =IF(N131="","","-"&VLOOKUP(N131,EventConditionConfig!A:C,3,FALSE)&IF(O131="","",CHAR(10)&"-"&VLOOKUP(O131,EventConditionConfig!A:C,3,FALSE))) ->  | S131: =_xlfn.TEXTJOIN(";",1,T131,V131) ->  | AA131: =IF(A131="","",IF(Q131=1,"",IF(A132="",3,1))) -> 1 | AB131: =IF(AA131=1,A132,IF(AA131=3,LEFT(A131,5)+1,"")) -> 1000807
A132: =K132*100+L132 -> 1000807 | B132: 2156 | C132: 疯痴相聚 | F132: 104 | G132: =IF(F132="","",VLOOKUP(F132,EventNPC!A:E,5,FALSE)) -> 痴道人 | H132: 2165 | I132: （抬头）......我，我真的不记得了。 | K132: 10008 | L132: =IF(K132=K131,L131+1,1) -> 7 | P132: =IF(N132="","","-"&VLOOKUP(N132,EventConditionConfig!A:C,3,FALSE)&IF(O132="","",CHAR(10)&"-"&VLOOKUP(O132,EventConditionConfig!A:C,3,FALSE))) ->  | S132: =_xlfn.TEXTJOIN(";",1,T132,V132) ->  | AA132: =IF(A132="","",IF(Q132=1,"",IF(A133="",3,1))) -> 1 | AB132: =IF(AA132=1,A133,IF(AA132=3,LEFT(A132,5)+1,"")) -> 1000808
A133: =K133*100+L133 -> 1000808 | B133: 2156 | C133: 疯痴相聚 | F133: 103 | G133: =IF(F133="","",VLOOKUP(F133,EventNPC!A:E,5,FALSE)) -> 疯道人 | H133: 2166 | I133: 那就放下风灵珠，和我出去走走。 | K133: 10008 | L133: =IF(K133=K132,L132+1,1) -> 8 | P133: =IF(N133="","","-"&VLOOKUP(N133,EventConditionConfig!A:C,3,FALSE)&IF(O133="","",CHAR(10)&"-"&VLOOKUP(O133,EventConditionConfig!A:C,3,FALSE))) ->  | S133: =_xlfn.TEXTJOIN(";",1,T133,V133) ->  | AA133: =IF(A133="","",IF(Q133=1,"",IF(A134="",3,1))) -> 1 | AB133: =IF(AA133=1,A134,IF(AA133=3,LEFT(A133,5)+1,"")) -> 1000809
A134: =K134*100+L134 -> 1000809 | B134: 2156 | C134: 疯痴相聚 | F134: 103 | G134: =IF(F134="","",VLOOKUP(F134,EventNPC!A:E,5,FALSE)) -> 疯道人 | H134: 2167 | I134: [痴道人楞了一下，片刻后轻轻点头] | K134: 10008 | L134: =IF(K134=K133,L133+1,1) -> 9 | M134: =_xlfn.TEXTJOIN(";",1,N134:O134) ->  | P134: =IF(N134="","","-"&VLOOKUP(N134,EventConditionConfig!A:C,3,FALSE)&IF(O134="","",CHAR(10)&"-"&VLOOKUP(O134,EventConditionConfig!A:C,3,FALSE))) ->  | S134: =_xlfn.TEXTJOIN(";",1,T134,V134) ->  | AA134: =IF(A134="","",IF(Q134=1,"",IF(A135="",3,1))) -> 1 | AB134: =IF(AA134=1,A135,IF(AA134=3,LEFT(A134,5)+1,"")) -> 1000810
A135: =K135*100+L135 -> 1000810 | B135: 2156 | C135: 疯痴相聚 | G135: =IF(F135="","",VLOOKUP(F135,EventNPC!A:E,5,FALSE)) ->  | H135: 2168 | I135: [突然..洞府周围灵气汇聚，快速涌入痴道人的身体.] | K135: 10008 | L135: =IF(K135=K134,L134+1,1) -> 10 | P135: =IF(N135="","","-"&VLOOKUP(N135,EventConditionConfig!A:C,3,FALSE)&IF(O135="","",CHAR(10)&"-"&VLOOKUP(O135,EventConditionConfig!A:C,3,FALSE))) ->  | Q135: 1 | R135: =A136 -> 1000811 | S135: =_xlfn.TEXTJOIN(";",1,T135,V135) -> 2169 | T135: 2169 | U135: 前辈，为何灵气会动！ | AA135: =IF(A135="","",IF(Q135=1,"",IF(A136="",3,1))) ->  | AB135: =IF(AA135=1,A136,IF(AA135=3,LEFT(A135,5)+1,"")) -> 
A136: =K136*100+L136 -> 1000811 | B136: 2156 | C136: 疯痴相聚 | F136: 103 | G136: =IF(F136="","",VLOOKUP(F136,EventNPC!A:E,5,FALSE)) -> 疯道人 | H136: 2170 | I136: 恭喜师弟，突破心魔。 | K136: 10008 | L136: =IF(K136=K135,L135+1,1) -> 11 | P136: =IF(N136="","","-"&VLOOKUP(N136,EventConditionConfig!A:C,3,FALSE)&IF(O136="","",CHAR(10)&"-"&VLOOKUP(O136,EventConditionConfig!A:C,3,FALSE))) ->  | S136: =_xlfn.TEXTJOIN(";",1,T136,V136) ->  | AA136: =IF(A136="","",IF(Q136=1,"",IF(A137="",3,1))) -> 1 | AB136: =IF(AA136=1,A137,IF(AA136=3,LEFT(A136,5)+1,"")) -> 1000812
A137: =K137*100+L137 -> 1000812 | B137: 2156 | C137: 疯痴相聚 | F137: 104 | G137: =IF(F137="","",VLOOKUP(F137,EventNPC!A:E,5,FALSE)) -> 痴道人 | H137: =MAX(B136,H136,D136,T136,V136)+1 -> 2171 | I137: 多谢师兄！ | K137: 10008 | L137: =IF(K137=K136,L136+1,1) -> 12 | P137: =IF(N137="","","-"&VLOOKUP(N137,EventConditionConfig!A:C,3,FALSE)&IF(O137="","",CHAR(10)&"-"&VLOOKUP(O137,EventConditionConfig!A:C,3,FALSE))) ->  | Q137: 1 | R137: =A138 -> 1000813 | S137: =_xlfn.TEXTJOIN(";",1,T137,V137) -> 2172;2173 | T137: =H137+1 -> 2172 | U137: 原来如此… | V137: =T137+1 -> 2173 | W137: 请前辈赐我风灵珠。 | AA137: =IF(A137="","",IF(Q137=1,"",IF(A138="",3,1))) ->  | AB137: =IF(AA137=1,A138,IF(AA137=3,LEFT(A137,5)+1,"")) -> 
A138: =K138*100+L138 -> 1000813 | B138: 2156 | C138: 疯痴相聚 | F138: 104 | G138: =IF(F138="","",VLOOKUP(F138,EventNPC!A:E,5,FALSE)) -> 痴道人 | H138: =MAX(B137,H137,D137,T137,V137)+1 -> 2174 | I138: 小友莫急… (说罢，痴道人将风灵珠的碎片合成了一颗完整的风灵珠) | K138: 10008 | L138: =IF(K138=K137,L137+1,1) -> 13 | P138: =IF(N138="","","-"&VLOOKUP(N138,EventConditionConfig!A:C,3,FALSE)&IF(O138="","",CHAR(10)&"-"&VLOOKUP(O138,EventConditionConfig!A:C,3,FALSE))) ->  | S138: =_xlfn.TEXTJOIN(";",1,T138,V138) ->  | AA138: =IF(A138="","",IF(Q138=1,"",IF(A139="",3,1))) -> 1 | AB138: =IF(AA138=1,A139,IF(AA138=3,LEFT(A138,5)+1,"")) -> 1000814
A139: =K139*100+L139 -> 1000814 | B139: 2156 | C139: 疯痴相聚 | F139: 104 | G139: =IF(F139="","",VLOOKUP(F139,EventNPC!A:E,5,FALSE)) -> 痴道人 | H139: =MAX(B138,H138,D138,T138,V138)+1 -> 2175 | I139: 拿好了，这风啊……来一回，不容易。 | K139: 10008 | L139: =IF(K139=K138,L138+1,1) -> 14 | P139: =IF(N139="","","-"&VLOOKUP(N139,EventConditionConfig!A:C,3,FALSE)&IF(O139="","",CHAR(10)&"-"&VLOOKUP(O139,EventConditionConfig!A:C,3,FALSE))) ->  | S139: =_xlfn.TEXTJOIN(";",1,T139,V139) ->  | AA139: =IF(A139="","",IF(Q139=1,"",IF(A140="",3,1))) -> 3 | AB139: =IF(AA139=1,A140,IF(AA139=3,LEFT(A139,5)+1,"")) -> 10009
P140: =IF(N140="","","-"&VLOOKUP(N140,EventConditionConfig!A:C,3,FALSE)&IF(O140="","",CHAR(10)&"-"&VLOOKUP(O140,EventConditionConfig!A:C,3,FALSE))) -> 
A141: =K141*100+L141 -> 1000901 | B141: =IF(B140="",MAX(V139,T139,H139)+1,B140) -> 2176 | C141: 达到筑基后期 | F141: 100 | G141: =IF(F141="","",VLOOKUP(F141,EventNPC!A:E,5,FALSE)) -> 玩家 | H141: =IF(L141=1,B141+1,MAX(B140,H140,D140,T140,V140)+1) -> 2177 | I141: 完整的风灵珠果然不同凡响，我可以更大的狂风中穿行了。 | K141: 10009 | L141: =IF(K141=K140,L140+1,1) -> 1 | P141: =IF(N141="","","-"&VLOOKUP(N141,EventConditionConfig!A:C,3,FALSE)&IF(O141="","",CHAR(10)&"-"&VLOOKUP(O141,EventConditionConfig!A:C,3,FALSE))) ->  | S141: =_xlfn.TEXTJOIN(";",1,T141,V141) ->  | AA141: =IF(A141="","",IF(Q141=1,"",IF(A142="",3,1))) -> 1 | AB141: =IF(AA141=1,A142,IF(AA141=3,LEFT(A141,5)+1,"")) -> 1000902
A142: =K142*100+L142 -> 1000902 | B142: =IF(B141="",MAX(V140,T140,H140)+1,B141) -> 2176 | C142: 达到筑基后期 | F142: 100 | G142: =IF(F142="","",VLOOKUP(F142,EventNPC!A:E,5,FALSE)) -> 玩家 | H142: =IF(L142=1,B142+1,MAX(B141,H141,D141,T141,V141)+1) -> 2178 | I142: 前方似乎有不少高阶妖兽，我先在此地提升一些修为吧。 | K142: 10009 | L142: =IF(K142=K141,L141+1,1) -> 2 | P142: =IF(N142="","","-"&VLOOKUP(N142,EventConditionConfig!A:C,3,FALSE)&IF(O142="","",CHAR(10)&"-"&VLOOKUP(O142,EventConditionConfig!A:C,3,FALSE))) ->  | S142: =_xlfn.TEXTJOIN(";",1,T142,V142) ->  | AA142: =IF(A142="","",IF(Q142=1,"",IF(A143="",3,1))) -> 1 | AB142: =IF(AA142=1,A143,IF(AA142=3,LEFT(A142,5)+1,"")) -> 1000903
A143: =K143*100+L143 -> 1000903 | B143: =IF(B142="",MAX(V141,T141,H141)+1,B142) -> 2176 | C143: 达到筑基后期 | F143: 100 | G143: =IF(F143="","",VLOOKUP(F143,EventNPC!A:E,5,FALSE)) -> 玩家 | H143: =IF(L143=1,B143+1,MAX(B142,H142,D142,T142,V142)+1) -> 2179 | I143: 终于筑基中期了，继续寻找冲虚提到的“七道心境”吧，不知鲲鹏是否会给我答案。 | K143: 10009 | L143: =IF(K143=K142,L142+1,1) -> 3 | M143: 8 | N143: 8 | P143: =IF(N143="","","-"&VLOOKUP(N143,EventConditionConfig!A:C,3,FALSE)&IF(O143="","",CHAR(10)&"-"&VLOOKUP(O143,EventConditionConfig!A:C,3,FALSE))) -> -达到境界：筑基-后期 | S143: =_xlfn.TEXTJOIN(";",1,T143,V143) ->  | AA143: =IF(A143="","",IF(Q143=1,"",IF(A144="",3,1))) -> 3 | AB143: =IF(AA143=1,A144,IF(AA143=3,LEFT(A143,5)+1,"")) -> 10010
P144: =IF(N144="","","-"&VLOOKUP(N144,EventConditionConfig!A:C,3,FALSE)&IF(O144="","",CHAR(10)&"-"&VLOOKUP(O144,EventConditionConfig!A:C,3,FALSE))) -> 
A145: =K145*100+L145 -> 1001001 | B145: =IF(B144="",MAX(V143,T143,H143)+1,B144) -> 2180 | C145: 妖兽横行 | G145: =IF(F145="","",VLOOKUP(F145,EventNPC!A:E,5,FALSE)) ->  | K145: =IF(K144="",K143+1,K144) -> 10010 | L145: =IF(K145=K144,L144+1,1) -> 1 | M145: 9 | N145: 9 | P145: =IF(N145="","","-"&VLOOKUP(N145,EventConditionConfig!A:C,3,FALSE)&IF(O145="","",CHAR(10)&"-"&VLOOKUP(O145,EventConditionConfig!A:C,3,FALSE))) -> -击杀妖兽 | S145: =_xlfn.TEXTJOIN(";",1,T145,V145) ->  | AA145: =IF(A145="","",IF(Q145=1,"",IF(A146="",3,1))) -> 3 | AB145: =IF(AA145=1,A146,IF(AA145=3,LEFT(A145,5)+1,"")) -> 10011
P146: =IF(N146="","","-"&VLOOKUP(N146,EventConditionConfig!A:C,3,FALSE)&IF(O146="","",CHAR(10)&"-"&VLOOKUP(O146,EventConditionConfig!A:C,3,FALSE))) -> 
A147: =K147*100+L147 -> 1001101 | B147: =IF(B146="",MAX(V145,T145,H145,B145,D145)+1,B146) -> 2181 | C147: 遇见鲲鹏 | G147: =IF(F147="","",VLOOKUP(F147,EventNPC!A:E,5,FALSE)) ->  | H147: =IF(L147=1,B147+1,MAX(B146,H146,D146,T146,V146)+1) -> 2182 | I147: 鲲鹏需要去南海最深处的天池，可缺少龙卷风，没有大风，大鹏无法飞起来 | K147: =IF(K146="",K145+1,K146) -> 10011 | L147: =IF(K147=K146,L146+1,1) -> 1 | P147: =IF(N147="","","-"&VLOOKUP(N147,EventConditionConfig!A:C,3,FALSE)&IF(O147="","",CHAR(10)&"-"&VLOOKUP(O147,EventConditionConfig!A:C,3,FALSE))) ->  | S147: =_xlfn.TEXTJOIN(";",1,T147,V147) ->  | AA147: =IF(A147="","",IF(Q147=1,"",IF(A148="",3,1))) -> 3 | AB147: =IF(AA147=1,A148,IF(AA147=3,LEFT(A147,5)+1,"")) -> 10012
P148: =IF(N148="","","-"&VLOOKUP(N148,EventConditionConfig!A:C,3,FALSE)&IF(O148="","",CHAR(10)&"-"&VLOOKUP(O148,EventConditionConfig!A:C,3,FALSE))) -> 
A149: =K149*100+L149 -> 1001201 | B149: =IF(B148="",MAX(V147,T147,H147,B147,D147)+1,B148) -> 2183 | C149: 尧让天下 | D149: =IF(E149="","",B149+1) -> 2184 | E149: 倾听尧帝的烦恼 | G149: =IF(F149="","",VLOOKUP(F149,EventNPC!A:E,5,FALSE)) ->  | H149: =IF(I149="","",IF(L149=1,MAX(D149,B149)+1,MAX(B148,H148,D148,T148,V148)+1)) -> 2185 | I149: 你踏入帝尧治下的仙域——一片祥和之地，灵气充沛，民众安居，仿佛世外桃源。 | K149: =IF(K148="",K147+1,K148) -> 10012 | L149: =IF(K149=K148,L148+1,1) -> 1 | P149: =IF(N149="","","-"&VLOOKUP(N149,EventConditionConfig!A:C,3,FALSE)&IF(O149="","",CHAR(10)&"-"&VLOOKUP(O149,EventConditionConfig!A:C,3,FALSE))) ->  | S149: =_xlfn.TEXTJOIN(";",1,T149,V149) ->  | AA149: =IF(A149="","",IF(Q149=1,"",IF(A150="",3,1))) -> 1 | AB149: =IF(AA149=1,A150,IF(AA149=3,LEFT(A149,5)+1,"")) -> 1001202
A150: =K150*100+L150 -> 1001202 | B150: =IF(B149="",MAX(V148,T148,H148,B148,D148)+1,B149) -> 2183 | C150: 尧让天下 | D150: =IF(E150="","",B150+1) -> 2184 | E150: 倾听尧帝的烦恼 | G150: =IF(F150="","",VLOOKUP(F150,EventNPC!A:E,5,FALSE)) ->  | H150: =IF(I150="","",IF(L150=1,MAX(D150,B150)+1,MAX(B149,H149,D149,T149,V149)+1)) -> 2186 | I150: 然而，这位千年帝君，却眉宇间有难掩的忧色。 | K150: =IF(K149="",K148+1,K149) -> 10012 | L150: =IF(K150=K149,L149+1,1) -> 2 | P150: =IF(N150="","","-"&VLOOKUP(N150,EventConditionConfig!A:C,3,FALSE)&IF(O150="","",CHAR(10)&"-"&VLOOKUP(O150,EventConditionConfig!A:C,3,FALSE))) ->  | S150: =_xlfn.TEXTJOIN(";",1,T150,V150) ->  | AA150: =IF(A150="","",IF(Q150=1,"",IF(A151="",3,1))) -> 1 | AB150: =IF(AA150=1,A151,IF(AA150=3,LEFT(A150,5)+1,"")) -> 1001203
A151: =K151*100+L151 -> 1001203 | B151: =IF(B150="",MAX(V149,T149,H149,B149,D149)+1,B150) -> 2183 | C151: 尧让天下 | D151: 2184 | E151: 倾听尧帝的烦恼 | G151: =IF(F151="","",VLOOKUP(F151,EventNPC!A:E,5,FALSE)) ->  | H151: 2187 | I151: （你根据逍遥铃的指引，找到了尧） | K151: =IF(K150="",K149+1,K150) -> 10012 | L151: =IF(K151=K150,L150+1,1) -> 3 | P151: =IF(N151="","","-"&VLOOKUP(N151,EventConditionConfig!A:C,3,FALSE)&IF(O151="","",CHAR(10)&"-"&VLOOKUP(O151,EventConditionConfig!A:C,3,FALSE))) ->  | Q151: 1 | R151: =A152 -> 1001204 | S151: =_xlfn.TEXTJOIN(";",1,T151,V151) -> 2188 | T151: =IF(U151="","",H151+1) -> 2188 | U151: 拜见帝尧，晚辈受冲虚真人的指引，游历到此处。 | AA151: =IF(A151="","",IF(Q151=1,"",IF(A152="",3,1))) ->  | AB151: =IF(AA151=1,A152,IF(AA151=3,LEFT(A151,5)+1,"")) -> 
A152: =K152*100+L152 -> 1001204 | B152: =IF(B151="",MAX(V150,T150,H150,B150,D150)+1,B151) -> 2183 | C152: 尧让天下 | D152: 2184 | E152: 倾听尧帝的烦恼 | F152: 105 | G152: =IF(F152="","",VLOOKUP(F152,EventNPC!A:E,5,FALSE)) -> 尧帝 | H152: 2189 | I152: （缓缓回头，脸上带着淡淡忧虑）冲虚真人吗？我也许久没见了.. | K152: =IF(K151="",K150+1,K151) -> 10012 | L152: =IF(K152=K151,L151+1,1) -> 4 | P152: =IF(N152="","","-"&VLOOKUP(N152,EventConditionConfig!A:C,3,FALSE)&IF(O152="","",CHAR(10)&"-"&VLOOKUP(O152,EventConditionConfig!A:C,3,FALSE))) ->  | S152: =_xlfn.TEXTJOIN(";",1,T152,V152) ->  | T152: =IF(U152="","",H152+1) ->  | AA152: =IF(A152="","",IF(Q152=1,"",IF(A153="",3,1))) -> 1 | AB152: =IF(AA152=1,A153,IF(AA152=3,LEFT(A152,5)+1,"")) -> 1001205
A153: =K153*100+L153 -> 1001205 | B153: =IF(B152="",MAX(V151,T151,H151,B151,D151)+1,B152) -> 2183 | C153: 尧让天下 | D153: 2184 | E153: 倾听尧帝的烦恼 | F153: 105 | G153: =IF(F153="","",VLOOKUP(F153,EventNPC!A:E,5,FALSE)) -> 尧帝 | H153: 2190 | I153: (尧帝邀你来到一高处) 小友，你看此处景致如何？ | K153: =IF(K152="",K151+1,K152) -> 10012 | L153: =IF(K153=K152,L152+1,1) -> 5 | P153: =IF(N153="","","-"&VLOOKUP(N153,EventConditionConfig!A:C,3,FALSE)&IF(O153="","",CHAR(10)&"-"&VLOOKUP(O153,EventConditionConfig!A:C,3,FALSE))) ->  | Q153: 1 | R153: =A154 -> 1001206 | S153: =_xlfn.TEXTJOIN(";",1,T153,V153) -> 2191;2192 | T153: =IF(U153="","",H153+1) -> 2191 | U153: 万象更新，灵气环绕，是修行的福地。 | V153: =IF(W153="","",T153+1) -> 2192 | W153: 国泰民安，仙人治理，世间罕见。 | AA153: =IF(A153="","",IF(Q153=1,"",IF(A154="",3,1))) ->  | AB153: =IF(AA153=1,A154,IF(AA153=3,LEFT(A153,5)+1,"")) -> 
A154: =K154*100+L154 -> 1001206 | B154: =IF(B153="",MAX(V152,T152,H152,B152,D152)+1,B153) -> 2183 | C154: 尧让天下 | D154: 2184 | E154: 倾听尧帝的烦恼 | F154: 105 | G154: =IF(F154="","",VLOOKUP(F154,EventNPC!A:E,5,FALSE)) -> 尧帝 | H154: 2193 | I154: （叹息）是啊，人人自在，唯我不自在。这些年来，我境界难以寸进，已有百年。 | K154: =IF(K153="",K152+1,K153) -> 10012 | L154: =IF(K154=K153,L153+1,1) -> 6 | P154: =IF(N154="","","-"&VLOOKUP(N154,EventConditionConfig!A:C,3,FALSE)&IF(O154="","",CHAR(10)&"-"&VLOOKUP(O154,EventConditionConfig!A:C,3,FALSE))) ->  | Q154: 1 | R154: =A155 -> 1001207 | S154: =_xlfn.TEXTJOIN(";",1,T154,V154) -> 2194 | T154: =IF(U154="","",H154+1) -> 2194 | U154: 帝尧何出此言？ | V154: =IF(W154="","",T154+1) ->  | AA154: =IF(A154="","",IF(Q154=1,"",IF(A155="",3,1))) ->  | AB154: =IF(AA154=1,A155,IF(AA154=3,LEFT(A154,5)+1,"")) -> 
A155: =K155*100+L155 -> 1001207 | B155: =IF(B154="",MAX(V153,T153,H153,B153,D153)+1,B154) -> 2183 | C155: 尧让天下 | D155: 2184 | E155: 倾听尧帝的烦恼 | F155: 105 | G155: =IF(F155="","",VLOOKUP(F155,EventNPC!A:E,5,FALSE)) -> 尧帝 | H155: 2195 | I155: 你等散修，自由自在，来去如风，可曾体会过身负重任的滋味？ | K155: =IF(K154="",K153+1,K154) -> 10012 | L155: =IF(K155=K154,L154+1,1) -> 7 | P155: =IF(N155="","","-"&VLOOKUP(N155,EventConditionConfig!A:C,3,FALSE)&IF(O155="","",CHAR(10)&"-"&VLOOKUP(O155,EventConditionConfig!A:C,3,FALSE))) ->  | Q155: 1 | R155: =A156 -> 1001208 | S155: =_xlfn.TEXTJOIN(";",1,T155,V155) -> 2196 | T155: =IF(U155="","",H155+1) -> 2196 | U155: 也有重担，却未必如帝尧这样复杂。 | V155: =IF(W155="","",T155+1) ->  | AA155: =IF(A155="","",IF(Q155=1,"",IF(A156="",3,1))) ->  | AB155: =IF(AA155=1,A156,IF(AA155=3,LEFT(A155,5)+1,"")) -> 
A156: =K156*100+L156 -> 1001208 | B156: =IF(B155="",MAX(V154,T154,H154,B154,D154)+1,B155) -> 2183 | C156: 尧让天下 | D156: 2184 | E156: 倾听尧帝的烦恼 | F156: 105 | G156: =IF(F156="","",VLOOKUP(F156,EventNPC!A:E,5,FALSE)) -> 尧帝 | H156: 2197 | I156: （微微一笑，摇头）天下如画卷，画卷再美，日夜背负，也终是负担。 | K156: =IF(K155="",K154+1,K155) -> 10012 | L156: =IF(K156=K155,L155+1,1) -> 8 | P156: =IF(N156="","","-"&VLOOKUP(N156,EventConditionConfig!A:C,3,FALSE)&IF(O156="","",CHAR(10)&"-"&VLOOKUP(O156,EventConditionConfig!A:C,3,FALSE))) ->  | Q156: 1 | R156: =A157 -> 1001209 | S156: =_xlfn.TEXTJOIN(";",1,T156,V156) -> 2198 | T156: =IF(U156="","",H156+1) -> 2198 | U156: ...... | V156: =IF(W156="","",T156+1) ->  | AA156: =IF(A156="","",IF(Q156=1,"",IF(A157="",3,1))) ->  | AB156: =IF(AA156=1,A157,IF(AA156=3,LEFT(A156,5)+1,"")) -> 
A157: =K157*100+L157 -> 1001209 | B157: =IF(B156="",MAX(V155,T155,H155,B155,D155)+1,B156) -> 2183 | C157: 尧让天下 | D157: 2184 | E157: 倾听尧帝的烦恼 | F157: 105 | G157: =IF(F157="","",VLOOKUP(F157,EventNPC!A:E,5,FALSE)) -> 尧帝 | H157: 2199 | I157: （凝望远方云海）深山之中有位贤士，名为许由，素有盛名，我曾多次请他出山，但未成如愿。 | K157: =IF(K156="",K155+1,K156) -> 10012 | L157: =IF(K157=K156,L156+1,1) -> 9 | P157: =IF(N157="","","-"&VLOOKUP(N157,EventConditionConfig!A:C,3,FALSE)&IF(O157="","",CHAR(10)&"-"&VLOOKUP(O157,EventConditionConfig!A:C,3,FALSE))) ->  | S157: =_xlfn.TEXTJOIN(";",1,T157,V157) ->  | T157: =IF(U157="","",H157+1) ->  | V157: =IF(W157="","",T157+1) ->  | AA157: =IF(A157="","",IF(Q157=1,"",IF(A158="",3,1))) -> 1 | AB157: =IF(AA157=1,A158,IF(AA157=3,LEFT(A157,5)+1,"")) -> 1001210
A158: =K158*100+L158 -> 1001210 | B158: =IF(B157="",MAX(V156,T156,H156,B156,D156)+1,B157) -> 2183 | C158: 尧让天下 | D158: 2184 | E158: 倾听尧帝的烦恼 | F158: 105 | G158: =IF(F158="","",VLOOKUP(F158,EventNPC!A:E,5,FALSE)) -> 尧帝 | H158: 2200 | I158: 我甚至提出让天下于他，他也不为所动。 | K158: =IF(K157="",K156+1,K157) -> 10012 | L158: =IF(K158=K157,L157+1,1) -> 10 | P158: =IF(N158="","","-"&VLOOKUP(N158,EventConditionConfig!A:C,3,FALSE)&IF(O158="","",CHAR(10)&"-"&VLOOKUP(O158,EventConditionConfig!A:C,3,FALSE))) ->  | Q158: 1 | R158: =A159 -> 1001211 | S158: =_xlfn.TEXTJOIN(";",1,T158,V158) -> 2201 | T158: =IF(U158="","",H158+1) -> 2201 | U158: 世间竟然有此奇人？ | V158: =IF(W158="","",T158+1) ->  | AA158: =IF(A158="","",IF(Q158=1,"",IF(A159="",3,1))) ->  | AB158: =IF(AA158=1,A159,IF(AA158=3,LEFT(A158,5)+1,"")) -> 
A159: =K159*100+L159 -> 1001211 | B159: =IF(B158="",MAX(V157,T157,H157,B157,D157)+1,B158) -> 2183 | C159: 尧让天下 | D159: 2184 | E159: 倾听尧帝的烦恼 | F159: 105 | G159: =IF(F159="","",VLOOKUP(F159,EventNPC!A:E,5,FALSE)) -> 尧帝 | H159: 2202 | I159: （凝望远方云海）若小友有空，帮我再请许由出山，我定当感谢。 | K159: =IF(K158="",K157+1,K158) -> 10012 | L159: =IF(K159=K158,L158+1,1) -> 11 | P159: =IF(N159="","","-"&VLOOKUP(N159,EventConditionConfig!A:C,3,FALSE)&IF(O159="","",CHAR(10)&"-"&VLOOKUP(O159,EventConditionConfig!A:C,3,FALSE))) ->  | Q159: 1 | R159: =A160 -> 1001212 | S159: =_xlfn.TEXTJOIN(";",1,T159,V159) -> 2203 | T159: =IF(U159="","",H159+1) -> 2203 | U159: 好的，既然来了，我就走一趟。 | V159: =IF(W159="","",T159+1) ->  | AA159: =IF(A159="","",IF(Q159=1,"",IF(A160="",3,1))) ->  | AB159: =IF(AA159=1,A160,IF(AA159=3,LEFT(A159,5)+1,"")) -> 
A160: =K160*100+L160 -> 1001212 | B160: =IF(B159="",MAX(V158,T158,H158,B158,D158)+1,B159) -> 2183 | C160: 尧让天下 | D160: 2184 | E160: 倾听尧帝的烦恼 | G160: =IF(F160="","",VLOOKUP(F160,EventNPC!A:E,5,FALSE)) ->  | K160: =IF(K159="",K158+1,K159) -> 10012 | L160: =IF(K160=K159,L159+1,1) -> 12 | P160: =IF(N160="","","-"&VLOOKUP(N160,EventConditionConfig!A:C,3,FALSE)&IF(O160="","",CHAR(10)&"-"&VLOOKUP(O160,EventConditionConfig!A:C,3,FALSE))) ->  | S160: =_xlfn.TEXTJOIN(";",1,T160,V160) ->  | T160: =IF(U160="","",H160+1) ->  | V160: =IF(W160="","",T160+1) ->  | AA160: =IF(A160="","",IF(Q160=1,"",IF(A161="",3,1))) -> 3 | AB160: =IF(AA160=1,A161,IF(AA160=3,LEFT(A160,5)+1,"")) -> 10013
P161: =IF(N161="","","-"&VLOOKUP(N161,EventConditionConfig!A:C,3,FALSE)&IF(O161="","",CHAR(10)&"-"&VLOOKUP(O161,EventConditionConfig!A:C,3,FALSE))) -> 
A162: =K162*100+L162 -> 1001301 | B162: =IF(B161="",MAX(V160,T160,H160,B160,D160,V159,T159,H159)+1,B161) -> 2204 | C162: 访贤许由 | D162: =IF(E162="","",B162+1) -> 2205 | E162: 听一听这位尧帝口中的贤士有何说法 | G162: =IF(F162="","",VLOOKUP(F162,EventNPC!A:E,5,FALSE)) ->  | H162: =IF(I162="","",IF(L162=1,MAX(D162,B162)+1,MAX(B161,H161,D161,T161,V161)+1)) -> 2206 | I162: 你循帝尧所言，御剑前往幽山秘境。此处灵气绵长，古木参天，溪水潺潺。 | K162: =IF(K161="",K160+1,K161) -> 10013 | L162: =IF(K162=K161,L161+1,1) -> 1 | P162: =IF(N162="","","-"&VLOOKUP(N162,EventConditionConfig!A:C,3,FALSE)&IF(O162="","",CHAR(10)&"-"&VLOOKUP(O162,EventConditionConfig!A:C,3,FALSE))) ->  | S162: =_xlfn.TEXTJOIN(";",1,T162,V162) ->  | T162: =IF(U162="","",H162+1) ->  | V162: =IF(W162="","",T162+1) ->  | AA162: =IF(A162="","",IF(Q162=1,"",IF(A163="",3,1))) -> 1 | AB162: =IF(AA162=1,A163,IF(AA162=3,LEFT(A162,5)+1,"")) -> 1001302
A163: =K163*100+L163 -> 1001302 | B163: =IF(B162="",MAX(V161,T161,H161,B161,D161,V160,T160,H160)+1,B162) -> 2204 | C163: 访贤许由 | D163: =IF(E163="","",B163+1) -> 2205 | E163: 听一听这位尧帝口中的贤士有何说法 | G163: =IF(F163="","",VLOOKUP(F163,EventNPC!A:E,5,FALSE)) ->  | H163: =IF(I163="","",IF(L163=1,MAX(D163,B163)+1,MAX(B162,H162,D162,T162,V162)+1)) -> 2207 | I163: 据说，许由栖身于此，绝迹尘世，已有数百年。 | K163: =IF(K162="",K161+1,K162) -> 10013 | L163: =IF(K163=K162,L162+1,1) -> 2 | P163: =IF(N163="","","-"&VLOOKUP(N163,EventConditionConfig!A:C,3,FALSE)&IF(O163="","",CHAR(10)&"-"&VLOOKUP(O163,EventConditionConfig!A:C,3,FALSE))) ->  | S163: =_xlfn.TEXTJOIN(";",1,T163,V163) ->  | T163: =IF(U163="","",H163+1) ->  | V163: =IF(W163="","",T163+1) ->  | AA163: =IF(A163="","",IF(Q163=1,"",IF(A164="",3,1))) -> 1 | AB163: =IF(AA163=1,A164,IF(AA163=3,LEFT(A163,5)+1,"")) -> 1001303
A164: =K164*100+L164 -> 1001303 | B164: =IF(B163="",MAX(V162,T162,H162,B162,D162,V161,T161,H161)+1,B163) -> 2204 | C164: 访贤许由 | D164: =IF(E164="","",B164+1) -> 2205 | E164: 听一听这位尧帝口中的贤士有何说法 | G164: =IF(F164="","",VLOOKUP(F164,EventNPC!A:E,5,FALSE)) ->  | H164: =IF(I164="","",IF(L164=1,MAX(D164,B164)+1,MAX(B163,H163,D163,T163,V163)+1)) -> 2208 | I164: 山风徐徐，水声如琴，你踏过青石小径，看见一位白衣道人正倚石观水。 | K164: =IF(K163="",K162+1,K163) -> 10013 | L164: =IF(K164=K163,L163+1,1) -> 3 | P164: =IF(N164="","","-"&VLOOKUP(N164,EventConditionConfig!A:C,3,FALSE)&IF(O164="","",CHAR(10)&"-"&VLOOKUP(O164,EventConditionConfig!A:C,3,FALSE))) ->  | Q164: 1 | R164: =A165 -> 1001304 | S164: =_xlfn.TEXTJOIN(";",1,T164,V164) -> 2209 | T164: =IF(U164="","",H164+1) -> 2209 | U164: 前辈可是许由？ | V164: =IF(W164="","",T164+1) ->  | AA164: =IF(A164="","",IF(Q164=1,"",IF(A165="",3,1))) ->  | AB164: =IF(AA164=1,A165,IF(AA164=3,LEFT(A164,5)+1,"")) -> 
A165: =K165*100+L165 -> 1001304 | B165: =IF(B164="",MAX(V163,T163,H163,B163,D163,V162,T162,H162)+1,B164) -> 2204 | C165: 访贤许由 | D165: =IF(E165="","",B165+1) -> 2205 | E165: 听一听这位尧帝口中的贤士有何说法 | F165: 106 | G165: =IF(F165="","",VLOOKUP(F165,EventNPC!A:E,5,FALSE)) -> 许由 | H165: =IF(I165="","",IF(L165=1,MAX(D165,B165)+1,MAX(B164,H164,D164,T164,V164)+1)) -> 2210 | I165: 正是，小友何事？ | K165: =IF(K164="",K163+1,K164) -> 10013 | L165: =IF(K165=K164,L164+1,1) -> 4 | P165: =IF(N165="","","-"&VLOOKUP(N165,EventConditionConfig!A:C,3,FALSE)&IF(O165="","",CHAR(10)&"-"&VLOOKUP(O165,EventConditionConfig!A:C,3,FALSE))) ->  | S165: =_xlfn.TEXTJOIN(";",1,T165,V165) ->  | T165: =IF(U165="","",H165+1) ->  | V165: =IF(W165="","",T165+1) ->  | AA165: =IF(A165="","",IF(Q165=1,"",IF(A166="",3,1))) -> 1 | AB165: =IF(AA165=1,A166,IF(AA165=3,LEFT(A165,5)+1,"")) -> 1001305
A166: =K166*100+L166 -> 1001305 | B166: =IF(B165="",MAX(V164,T164,H164,B164,D164,V163,T163,H163)+1,B165) -> 2204 | C166: 访贤许由 | D166: =IF(E166="","",B166+1) -> 2205 | E166: 听一听这位尧帝口中的贤士有何说法 | F166: 100 | G166: =IF(F166="","",VLOOKUP(F166,EventNPC!A:E,5,FALSE)) -> 玩家 | H166: =IF(I166="","",IF(L166=1,MAX(D166,B166)+1,MAX(B165,H165,D165,T165,V165)+1)) -> 2211 | I166: 帝尧欲专心修行，求道问玄，又怕耽误世事，特托我前来相请，欲让天下于你。 | K166: =IF(K165="",K164+1,K165) -> 10013 | L166: =IF(K166=K165,L165+1,1) -> 5 | P166: =IF(N166="","","-"&VLOOKUP(N166,EventConditionConfig!A:C,3,FALSE)&IF(O166="","",CHAR(10)&"-"&VLOOKUP(O166,EventConditionConfig!A:C,3,FALSE))) ->  | S166: =_xlfn.TEXTJOIN(";",1,T166,V166) ->  | T166: =IF(U166="","",H166+1) ->  | V166: =IF(W166="","",T166+1) ->  | AA166: =IF(A166="","",IF(Q166=1,"",IF(A167="",3,1))) -> 1 | AB166: =IF(AA166=1,A167,IF(AA166=3,LEFT(A166,5)+1,"")) -> 1001306
A167: =K167*100+L167 -> 1001306 | B167: =IF(B166="",MAX(V165,T165,H165,B165,D165,V164,T164,H164)+1,B166) -> 2204 | C167: 访贤许由 | D167: =IF(E167="","",B167+1) -> 2205 | E167: 听一听这位尧帝口中的贤士有何说法 | F167: 106 | G167: =IF(F167="","",VLOOKUP(F167,EventNPC!A:E,5,FALSE)) -> 许由 | H167: =IF(I167="","",IF(L167=1,MAX(D167,B167)+1,MAX(B166,H166,D166,T166,V166)+1)) -> 2212 | I167: （静默片刻）昔日帝尧就提过此事，我已辞之。 | K167: =IF(K166="",K165+1,K166) -> 10013 | L167: =IF(K167=K166,L166+1,1) -> 6 | P167: =IF(N167="","","-"&VLOOKUP(N167,EventConditionConfig!A:C,3,FALSE)&IF(O167="","",CHAR(10)&"-"&VLOOKUP(O167,EventConditionConfig!A:C,3,FALSE))) ->  | S167: =_xlfn.TEXTJOIN(";",1,T167,V167) ->  | T167: =IF(U167="","",H167+1) ->  | V167: =IF(W167="","",T167+1) ->  | AA167: =IF(A167="","",IF(Q167=1,"",IF(A168="",3,1))) -> 1 | AB167: =IF(AA167=1,A168,IF(AA167=3,LEFT(A167,5)+1,"")) -> 1001307
A168: =K168*100+L168 -> 1001307 | B168: =IF(B167="",MAX(V166,T166,H166,B166,D166,V165,T165,H165)+1,B167) -> 2204 | C168: 访贤许由 | D168: =IF(E168="","",B168+1) -> 2205 | E168: 听一听这位尧帝口中的贤士有何说法 | F168: 106 | G168: =IF(F168="","",VLOOKUP(F168,EventNPC!A:E,5,FALSE)) -> 许由 | H168: =IF(I168="","",IF(L168=1,MAX(D168,B168)+1,MAX(B167,H167,D167,T167,V167)+1)) -> 2213 | I168: 今日又来，想是道心不定，执念未除。 | K168: =IF(K167="",K166+1,K167) -> 10013 | L168: =IF(K168=K167,L167+1,1) -> 7 | P168: =IF(N168="","","-"&VLOOKUP(N168,EventConditionConfig!A:C,3,FALSE)&IF(O168="","",CHAR(10)&"-"&VLOOKUP(O168,EventConditionConfig!A:C,3,FALSE))) ->  | Q168: 1 | R168: =A169 -> 1001308 | S168: =_xlfn.TEXTJOIN(";",1,T168,V168) -> 2214 | T168: =IF(U168="","",H168+1) -> 2214 | U168: 请前辈出山。 | V168: =IF(W168="","",T168+1) ->  | AA168: =IF(A168="","",IF(Q168=1,"",IF(A169="",3,1))) ->  | AB168: =IF(AA168=1,A169,IF(AA168=3,LEFT(A168,5)+1,"")) -> 
A169: 1001308 | B169: =IF(B168="",MAX(V167,T167,H167,B167,D167,V166,T166,H166)+1,B168) -> 2204 | C169: 访贤许由 | D169: 2205 | E169: 听一听这位尧帝口中的贤士有何说法 | F169: 106 | G169: =IF(F169="","",VLOOKUP(F169,EventNPC!A:E,5,FALSE)) -> 许由 | H169: 2215 | I169: 哼，让我去？ | K169: =IF(K168="",K167+1,K168) -> 10013 | L169: 8 | P169: =IF(N169="","","-"&VLOOKUP(N169,EventConditionConfig!A:C,3,FALSE)&IF(O169="","",CHAR(10)&"-"&VLOOKUP(O169,EventConditionConfig!A:C,3,FALSE))) ->  | S169: =_xlfn.TEXTJOIN(";",1,T169,V169) ->  | T169: =IF(U169="","",H169+1) ->  | V169: =IF(W169="","",T169+1) ->  | AA169: 1 | AB169: 1001309
A170: =K170*100+L170 -> 1001309 | B170: =IF(B169="",MAX(V168,T168,H168,B168,D168,V167,T167,H167)+1,B169) -> 2204 | C170: 访贤许由 | D170: =IF(E170="","",B170+1) -> 2205 | E170: 听一听这位尧帝口中的贤士有何说法 | F170: 106 | G170: =IF(F170="","",VLOOKUP(F170,EventNPC!A:E,5,FALSE)) -> 许由 | H170: =IF(I170="","",IF(L170=1,MAX(D170,B170)+1,MAX(B169,H169,D169,T169,V169)+1)) -> 2216 | I170: 那我问你，日月升天，照耀四方。若这时有人手举火把照路，岂不徒劳？ | K170: =IF(K169="",K168+1,K169) -> 10013 | L170: =IF(K170=K169,L169+1,1) -> 9 | P170: =IF(N170="","","-"&VLOOKUP(N170,EventConditionConfig!A:C,3,FALSE)&IF(O170="","",CHAR(10)&"-"&VLOOKUP(O170,EventConditionConfig!A:C,3,FALSE))) ->  | S170: =_xlfn.TEXTJOIN(";",1,T170,V170) ->  | T170: =IF(U170="","",H170+1) ->  | V170: =IF(W170="","",T170+1) ->  | AA170: =IF(A170="","",IF(Q170=1,"",IF(A171="",3,1))) -> 1 | AB170: =IF(AA170=1,A171,IF(AA170=3,LEFT(A170,5)+1,"")) -> 1001310
A171: =K171*100+L171 -> 1001310 | B171: =IF(B170="",MAX(V169,T169,H169,B169,D169,V168,T168,H168)+1,B170) -> 2204 | C171: 访贤许由 | D171: =IF(E171="","",B171+1) -> 2205 | E171: 听一听这位尧帝口中的贤士有何说法 | F171: 106 | G171: =IF(F171="","",VLOOKUP(F171,EventNPC!A:E,5,FALSE)) -> 许由 | H171: =IF(I171="","",IF(L171=1,MAX(D171,B171)+1,MAX(B170,H170,D170,T170,V170)+1)) -> 2217 | I171: 那我再问你，斜风细雨，滋养万物。若这时有人用水桶来灌溉，岂不可笑？ | K171: =IF(K170="",K169+1,K170) -> 10013 | L171: =IF(K171=K170,L170+1,1) -> 10 | P171: =IF(N171="","","-"&VLOOKUP(N171,EventConditionConfig!A:C,3,FALSE)&IF(O171="","",CHAR(10)&"-"&VLOOKUP(O171,EventConditionConfig!A:C,3,FALSE))) ->  | S171: =_xlfn.TEXTJOIN(";",1,T171,V171) ->  | T171: =IF(U171="","",H171+1) ->  | V171: =IF(W171="","",T171+1) ->  | AA171: =IF(A171="","",IF(Q171=1,"",IF(A172="",3,1))) -> 1 | AB171: =IF(AA171=1,A172,IF(AA171=3,LEFT(A171,5)+1,"")) -> 1001311
A172: =K172*100+L172 -> 1001311 | B172: =IF(B171="",MAX(V170,T170,H170,B170,D170,V169,T169,H169)+1,B171) -> 2204 | C172: 访贤许由 | D172: =IF(E172="","",B172+1) -> 2205 | E172: 听一听这位尧帝口中的贤士有何说法 | F172: 106 | G172: =IF(F172="","",VLOOKUP(F172,EventNPC!A:E,5,FALSE)) -> 许由 | H172: =IF(I172="","",IF(L172=1,MAX(D172,B172)+1,MAX(B171,H171,D171,T171,V171)+1)) -> 2218 | I172: 天下在尧的带领下，已经治理得很好了，又何必要我，我是要去混个功成名就吗？ | K172: =IF(K171="",K170+1,K171) -> 10013 | L172: =IF(K172=K171,L171+1,1) -> 11 | P172: =IF(N172="","","-"&VLOOKUP(N172,EventConditionConfig!A:C,3,FALSE)&IF(O172="","",CHAR(10)&"-"&VLOOKUP(O172,EventConditionConfig!A:C,3,FALSE))) ->  | S172: =_xlfn.TEXTJOIN(";",1,T172,V172) ->  | T172: =IF(U172="","",H172+1) ->  | V172: =IF(W172="","",T172+1) ->  | AA172: =IF(A172="","",IF(Q172=1,"",IF(A173="",3,1))) -> 1 | AB172: =IF(AA172=1,A173,IF(AA172=3,LEFT(A172,5)+1,"")) -> 1001312
A173: =K173*100+L173 -> 1001312 | B173: =IF(B172="",MAX(V171,T171,H171,B171,D171,V170,T170,H170)+1,B172) -> 2204 | C173: 访贤许由 | D173: =IF(E173="","",B173+1) -> 2205 | E173: 听一听这位尧帝口中的贤士有何说法 | F173: 106 | G173: =IF(F173="","",VLOOKUP(F173,EventNPC!A:E,5,FALSE)) -> 许由 | H173: =IF(I173="","",IF(L173=1,MAX(D173,B173)+1,MAX(B172,H172,D172,T172,V172)+1)) -> 2219 | I173: 回答我？ | K173: =IF(K172="",K171+1,K172) -> 10013 | L173: =IF(K173=K172,L172+1,1) -> 12 | P173: =IF(N173="","","-"&VLOOKUP(N173,EventConditionConfig!A:C,3,FALSE)&IF(O173="","",CHAR(10)&"-"&VLOOKUP(O173,EventConditionConfig!A:C,3,FALSE))) ->  | Q173: 1 | R173: =A174 -> 1001313 | S173: =_xlfn.TEXTJOIN(";",1,T173,V173) -> 2220 | T173: =IF(U173="","",H173+1) -> 2220 | U173: 就算只得功成名就也不错。 | V173: =IF(W173="","",T173+1) ->  | AA173: =IF(A173="","",IF(Q173=1,"",IF(A174="",3,1))) ->  | AB173: =IF(AA173=1,A174,IF(AA173=3,LEFT(A173,5)+1,"")) -> 
A174: 1001313 | B174: =IF(B173="",MAX(V172,T172,H172,B172,D172,V171,T171,H171)+1,B173) -> 2204 | C174: 访贤许由 | D174: 2205 | E174: 听一听这位尧帝口中的贤士有何说法 | F174: 106 | G174: =IF(F174="","",VLOOKUP(F174,EventNPC!A:E,5,FALSE)) -> 许由 | H174: 2221 | I174: 小友，名就像宾客一样，难道我们的一生是为了宾客吗？ | K174: =IF(K173="",K172+1,K173) -> 10013 | L174: 13 | P174: =IF(N174="","","-"&VLOOKUP(N174,EventConditionConfig!A:C,3,FALSE)&IF(O174="","",CHAR(10)&"-"&VLOOKUP(O174,EventConditionConfig!A:C,3,FALSE))) ->  | Q174: 1 | R174: =A175 -> 1001314 | S174: =_xlfn.TEXTJOIN(";",1,T174,V174) -> 2222 | T174: =IF(U174="","",H174+1) -> 2222 | U174: （愣住）...... | V174: =IF(W174="","",T174+1) -> 
A175: =K175*100+L175 -> 1001314 | B175: =IF(B174="",MAX(V173,T173,H173,B173,D173,V172,T172,H172)+1,B174) -> 2204 | C175: 访贤许由 | D175: =IF(E175="","",B175+1) -> 2205 | E175: 听一听这位尧帝口中的贤士有何说法 | F175: 106 | G175: =IF(F175="","",VLOOKUP(F175,EventNPC!A:E,5,FALSE)) -> 许由 | H175: =IF(I175="","",IF(L175=1,MAX(D175,B175)+1,MAX(B174,H174,D174,T174,V174)+1)) -> 2223 | I175: 他若真想修道，便该知“道不碍政，心自碍道”。 | K175: =IF(K174="",K173+1,K174) -> 10013 | L175: =IF(K175=K174,L174+1,1) -> 14 | P175: =IF(N175="","","-"&VLOOKUP(N175,EventConditionConfig!A:C,3,FALSE)&IF(O175="","",CHAR(10)&"-"&VLOOKUP(O175,EventConditionConfig!A:C,3,FALSE))) ->  | V175: =IF(W175="","",T175+1) ->  | AA175: =IF(A175="","",IF(Q175=1,"",IF(A176="",3,1))) -> 1 | AB175: =IF(AA175=1,A176,IF(AA175=3,LEFT(A175,5)+1,"")) -> 1001315
A176: 1001315 | B176: =IF(B175="",MAX(V174,T174,H174,B174,D174,V173,T173,H173)+1,B175) -> 2204 | C176: 访贤许由 | D176: 2205 | E176: 听一听这位尧帝口中的贤士有何说法 | F176: 106 | G176: =IF(F176="","",VLOOKUP(F176,EventNPC!A:E,5,FALSE)) -> 许由 | H176: 2224 | I176: 若心不净，纵避千山万水，又有何用。 | K176: =IF(K175="",K174+1,K175) -> 10013 | L176: 15 | P176: =IF(N176="","","-"&VLOOKUP(N176,EventConditionConfig!A:C,3,FALSE)&IF(O176="","",CHAR(10)&"-"&VLOOKUP(O176,EventConditionConfig!A:C,3,FALSE))) ->  | Q176: 1 | R176: =A177 -> 1001316 | S176: =_xlfn.TEXTJOIN(";",1,T176,V176) -> 2225 | T176: =IF(U176="","",H176+1) -> 2225 | U176: （愣住）...... | V176: =IF(W176="","",T176+1) -> 
A177: 1001316 | B177: =IF(B176="",MAX(V175,T175,H175,B175,D175,V174,T174,H174)+1,B176) -> 2204 | C177: 访贤许由 | D177: 2205 | E177: 听一听这位尧帝口中的贤士有何说法 | G177: =IF(F177="","",VLOOKUP(F177,EventNPC!A:E,5,FALSE)) ->  | K177: =IF(K176="",K175+1,K176) -> 10013 | L177: 16 | P177: =IF(N177="","","-"&VLOOKUP(N177,EventConditionConfig!A:C,3,FALSE)&IF(O177="","",CHAR(10)&"-"&VLOOKUP(O177,EventConditionConfig!A:C,3,FALSE))) ->  | S177: =_xlfn.TEXTJOIN(";",1,T177,V177) ->  | T177: =IF(U177="","",H177+1) ->  | V177: =IF(W177="","",T177+1) ->  | AA177: 3 | AB177: 10014
P178: =IF(N178="","","-"&VLOOKUP(N178,EventConditionConfig!A:C,3,FALSE)&IF(O178="","",CHAR(10)&"-"&VLOOKUP(O178,EventConditionConfig!A:C,3,FALSE))) -> 
A179: =K179*100+L179 -> 1001401 | B179: =IF(B178="",MAX(V177,T177,H177,B177,D177,V176,T176,H176)+1,B178) -> 2226 | C179: 割草喝茶 | D179: =IF(E179="","",B179+1) ->  | F179: 106 | G179: =IF(F179="","",VLOOKUP(F179,EventNPC!A:E,5,FALSE)) -> 许由 | H179: =IF(I179="","",IF(L179=1,MAX(D179,B179)+1,MAX(B178,H178,D178,T178,V178)+1)) -> 2227 | I179: （转身望向屋后的山坡）你来得也巧，我正想在开辟一块新药田。 | K179: =IF(K178="",K177+1,K178) -> 10014 | L179: =IF(K179=K178,L178+1,1) -> 1 | P179: =IF(N179="","","-"&VLOOKUP(N179,EventConditionConfig!A:C,3,FALSE)&IF(O179="","",CHAR(10)&"-"&VLOOKUP(O179,EventConditionConfig!A:C,3,FALSE))) ->  | S179: =_xlfn.TEXTJOIN(";",1,T179,V179) ->  | T179: =IF(U179="","",H179+1) ->  | V179: =IF(W179="","",T179+1) ->  | AA179: =IF(A179="","",IF(Q179=1,"",IF(A180="",3,1))) -> 1 | AB179: =IF(AA179=1,A180,IF(AA179=3,LEFT(A179,5)+1,"")) -> 1001402
A180: =K180*100+L180 -> 1001402 | B180: =IF(B179="",MAX(V178,T178,H178,B178,D178,V177,T177,H177)+1,B179) -> 2226 | C180: 割草喝茶 | D180: =IF(E180="","",B180+1) ->  | F180: 106 | G180: =IF(F180="","",VLOOKUP(F180,EventNPC!A:E,5,FALSE)) -> 许由 | H180: =IF(I180="","",IF(L180=1,MAX(D180,B180)+1,MAX(B179,H179,D179,T179,V179)+1)) -> 2228 | I180: 后山有一块不错的地，离家有一点远平时我也懒得去打理，正好你来了帮我开辟出来吧。 | K180: =IF(K179="",K178+1,K179) -> 10014 | L180: =IF(K180=K179,L179+1,1) -> 2 | P180: =IF(N180="","","-"&VLOOKUP(N180,EventConditionConfig!A:C,3,FALSE)&IF(O180="","",CHAR(10)&"-"&VLOOKUP(O180,EventConditionConfig!A:C,3,FALSE))) ->  | Q180: 1 | R180: =A181 -> 0 | S180: =_xlfn.TEXTJOIN(";",1,T180,V180) -> 2229 | T180: =IF(U180="","",H180+1) -> 2229 | U180: ……前辈是让我干农活吗 | V180: =IF(W180="","",T180+1) ->  | AA180: =IF(A180="","",IF(Q180=1,"",IF(A181="",3,1))) ->  | AB180: =IF(AA180=1,A181,IF(AA180=3,LEFT(A180,5)+1,"")) -> 

Sheet EventConditionConfig
A1: ID | B1: message | E1: Operation | G1: ConditionType | H1: ConditionPara | I1: finishCount
A2: int | B2: int | E2: int | G2: int | H2: int[] | I2: int
A4: ID | B4: 描述 | E4: 与0 或1 | G4: 条件判断类型 | H4: 条件判断值 | I4: 条件完成次数or数量 | J4: 提示 | K4: 跳转
A5: 1 | B5: 2078 | C5: 拥有金币 | D5: =CONCATENATE("- ",C5,"{0}/{1}") -> - 拥有金币{0}/{1} | G5: 1 | H5: 1001 | I5: 10
A6: 2 | B6: 2079 | C6: 达到境界：筑基-中期 | D6: =CONCATENATE("- ",C6,"{0}/{1}") -> - 达到境界：筑基-中期{0}/{1} | G6: 3 | H6: 11 | I6: 1
A7: 3 | B7: 2080 | C7: 击杀魔休 | D7: - 击杀魔休{0}/{1} | G7: 5 | H7: 100001 | I7: 5
A8: 4 | B8: 2081 | C8: 获得钻石 | D8: - 获得钻石{0}/{1} | G8: 6 | H8: 1002 | I8: 10
A9: 5 | B9: 2082 | C9: 使用神识 | D9: - 使用神识{0}/{1} | G9: 8 | I9: 1
A10: 6 | B10: 2094 | C10: 继续飞行一段时间 | D10: - 继续飞行一段时间{0}/{1} | G10: 9 | I10: 6
A11: 7 | C11: 击败结界兽 | D11: - 击败结界兽{0}/{1} | G11: 5 | H11: 100001 | I11: 1
A12: 8 | C12: 达到境界：筑基-后期 | D12: - 达到境界：筑基-后期{0}/{1} | G12: 3 | H12: 21 | I12: 1
A13: 9 | C13: 击杀妖兽 | D13: - 击杀妖兽{0}/{1} | G13: 5 | H13: 100004 | I13: 1
A14: 10 | C14: 击败后山小妖 | D14: - 击败后山小妖{0}/{1} | G14: 5 | H14: 100001 | I14: 3
A15: 11 | C15: 收集灵草种子 | D15: - 收集灵草种子{0}/{1} | G15: 6 | H15: 1002 | I15: 3

Sheet 条件类型查询
A1: ID | B1: 条件判断类型 | C1: 条件判断值 | D1: 条件完成次数or数量 | E1: 额外文本 | F1: 不可用 | G1: 是否可用于事件
A2: 1 | B2: 拥有特定道具 | C2: 道具ID | D2: 数量≥ | E2: 检测背包道具 | G2: 1
A3: 2 | B3: 灵根判定 | C3: 哪个灵根 | D3: 灵根值≥ | F3: 1
A4: 3 | B4: 境界判断 | C4: 境界id | G4: 1
A5: 5 | B5: 战斗胜利 | C5: 战斗组ID | D5: 胜利次数≥
A6: 6 | B6: 获得道具 | C6: 道具的ID | D6: 数量≥ | E6: 探测出事件才开始检测
A7: 7 | B7: 触发概率 | C7: 概率值 1000=100% | G7: 1
A8: 8 | B8: 使用神识 | D8: 数量≥
A9: 9 | B9: 游戏在线多少时长（秒） | D9: 时间≥（秒） | G9: 1

Sheet EventNPC
A1: ID | B1: name | C1: ID | D1: DaoyouID
A2: int | B2: int | C2: int | D2: int
A4: ID | B4: 名字 | C4: 半身像icon | D4: 道友ID | E4: 名称
A5: 1 | E5: 玩家
A6: 2 | D6: 1 | E6: 道友1
A7: 3 | D7: 2 | E7: 道友2
A8: 4 | D8: 3 | E8: 道友3
A9: 5 | D9: 4 | E9: 道友4
A10: 6 | D10: 5 | E10: 道友5
A11: 7 | D11: 6 | E11: 道友6
A12: 8 | D12: 7 | E12: 道友7
A13: 9 | D13: 8 | E13: 道友8
A14: 10 | D14: 9 | E14: 道友9
A15: 11 | D15: 10 | E15: 道友10
A17: 100 | E17: 玩家
A18: 101 | E18: 蜩鸟
A19: 102 | E19: 小麻雀
A20: 103 | E20: 疯道人
A21: 104 | E21: 痴道人
A22: 105 | E22: 尧帝
A23: 106 | E23: 许由

Sheet XianTuLogConfig
A1: ID | B1: EventType | C1: Title | D1: Desc | E1: BigMapID
A2: int | B2: int | C2: int | D2: int | E2: int
A4: ID | B4: 1主线 2事件 | C4: 名称 | D4: 描述 | E4: 属于哪个章节
A5: 1 | B5: 1 | C5: 2087 | D5: 2089 | E5: 1 | F5: 第一章.逍遥游 | G5: 多次渡劫失败的你，误入“无何有之乡”，在这里受到了列子的指引，踏上了寻找七道心境的修仙之路。
A6: 2 | B6: 2 | C6: 2088 | D6: 2090 | E6: 1 | F6: 无用的大葫芦 | G6: 惠子种出了巨大葫芦，他觉得毫无用处，非常生气！
A7: 3 | B7: 2 | C7: 2088 | D7: 2090 | E7: 2 | F7: 无用的大葫芦 | G7: 惠子种出了巨大葫芦，他觉得毫无用处，非常生气！
A8: 4 | B8: 2 | C8: 2088 | D8: 2090 | E8: 3 | F8: 无用的大葫芦 | G8: 惠子种出了巨大葫芦，他觉得毫无用处，非常生气！
